Workbook

Sheet Hilfe
B2: Hinweise und Hilfe zur Masseberechnung
B4: 1. Eigenschaften der Excel-Vorlage
B5: 2. Symbole und Grafiken als Link
B6: 3. Autor
B8: 1. Eigenschaften
C9: Von der Starttabelle aus, können alle weiteren Tabellen in der Arbeitsmappe mit einen Klick auf ein Link oder eine Grafik direkt angesteuert werden.
C10: Die Eingabe einer ausgewählten Dichte in das dafür vorgesehene Feld, wird auf alle anderen Masseberechnungstabellen automatisch übernommen und zur Berechnung verwendet.
C11: Einige Materialdichten sind in der linken Hälfte der Tabelle aufgelistet und werden beim anklicken automatisch übernommen. Weitere Materialdichten sind über den Link „weitere Dichten“ oder über den Grafiklink „Periodensystem der Elemente“ auszuwählen.
C12: Alle weißen Felder sind Eingabefelder. Alle restlichen Felder sind gesperrt!
C13: Die Ergebnisse der einzelnen Masseberechnungsblätter werden automatisch auf dem Startblatt im Feld "Gesamtmasse des Teiles in kg" addiert.
C14: Mit dem RESET-Link auf dem Startblatt, werden alle Eingaben in der Arbeitsmappe auf Null gesetzt.
C15: Die RESET-Links auf den einzelnen Arbeitsblättern setzen nur die Eingaben des jeweiligen Arbeitsblattes auf Null.
B17: 2. Symbole und Grafiken als Link
B31: 3. Autor
C32: Masseberechnung wurde erstellt von:
C33: Ulrich Daßler
C35: Vielen Dank, für Ihr Interesse an dieser Excel-Vorlage, die Weiterentwicklung lebt von Ihren Ideen, daher bin ich für Anregungen und Fragen immer offen:
C36: am besten per E-Mail:
C38: info@dasslers.de

Sheet PSE
B1: Das Periodensystem der Elemente (PSE)
B3: Gruppe
B4: IA | S4: VIIIA
B5: 1 | K5: Radioaktiv | S5: 2
B6: H | C6: IIA | N6: IIIA | O6: IVA | P6: VA | Q6: VIA | R6: VIIA | S6: He
B7: 3 | C7: 4 | K7: Edelgase | N7: 5 | O7: 6 | P7: 7 | Q7: 8 | R7: 9 | S7: 10
B8: Li | C8: Be | N8: B | O8: C | P8: N | Q8: O | R8: F | S8: Ne
B9: 11 | C9: 12 | K9: Halbmetalle | N9: 13 | O9: 14 | P9: 15 | Q9: 16 | R9: 17 | S9: 18
B10: Na | C10: Mg | D10: IIIB | E10: IVB | F10: VB | G10: VIB | H10: VIIB | J10: VIII | L10: IB | M10: IIB | N10: Al | O10: Si | P10: P | Q10: S | R10: Cl | S10: Ar
B11: 19 | C11: 20 | D11: 21 | E11: 22 | F11: 23 | G11: 24 | H11: 25 | I11: 26 | J11: 27 | K11: 28 | L11: 29 | M11: 30 | N11: 31 | O11: 32 | P11: 33 | Q11: 34 | R11: 35 | S11: 36
B12: K | C12: Ca | D12: Sc | E12: Ti | F12: V | G12: Cr | H12: Mn | I12: Fe | J12: Co | K12: Ni | L12: Cu | M12: Zn | N12: Ga | O12: Ge | P12: As | Q12: Se | R12: Br | S12: Kr
B13: 37 | C13: 38 | D13: 39 | E13: 40 | F13: 41 | G13: 42 | H13: 43 | I13: 44 | J13: 45 | K13: 46 | L13: 47 | M13: 48 | N13: 49 | O13: 50 | P13: 51 | Q13: 52 | R13: 53 | S13: 54
B14: Rb | C14: Sr | D14: Y | E14: Zr | F14: Nb | G14: Mo | H14: Tc | I14: Ru | J14: Rh | K14: Pd | L14: Ag | M14: Cd | N14: In | O14: Sn | P14: Sb | Q14: Te | R14: I | S14: Xe
B15: 55 | C15: 56 | D15: 57 | E15: 72 | F15: 73 | G15: 74 | H15: 75 | I15: 76 | J15: 77 | K15: 78 | L15: 79 | M15: 80 | N15: 81 | O15: 82 | P15: 83 | Q15: 84 | R15: 85 | S15: 86
B16: Cs | C16: Ba | D16: La | E16: Hf | F16: Ta | G16: W | H16: Re | I16: Os | J16: Ir | K16: Pt | L16: Au | M16: Hg | N16: Tl | O16: Pb | P16: Bi | Q16: Po | R16: At | S16: Rn
B17: 87 | C17: 88 | D17: 89 | E17: 104 -
B18: Fr | C18: Ra | D18: Ac | E18: 112
G19: 58 | H19: 59 | I19: 60 | J19: 61 | K19: 62 | L19: 63 | M19: 64 | N19: 65 | O19: 66 | P19: 67 | Q19: 68 | R19: 69 | S19: 70 | T19: 71
G20: Ce | H20: Pr | I20: Nd | J20: Pm | K20: Sm | L20: Eu | M20: Gd | N20: Tb | O20: Dy | P20: Ho | Q20: Er | R20: Tm | S20: Yb | T20: Lu
G21: 90 | H21: 91 | I21: 92 | J21: 93 | K21: 94 | L21: 95 | M21: 96 | N21: 97 | O21: 98 | P21: 99 | Q21: 100 | R21: 101 | S21: 102 | T21: 103
G22: Th | H22: Pa | I22: U | J22: Np | K22: Pu | L22: Am | M22: Cm | N22: Bk | O22: Cf | P22: Es | Q22: Fm | R22: Md | S22: No | T22: Lw
C38: Genauere Informationen
B40: Ordnungszahl | E40: 1 | H40: Oxidationszahl | K40: 1
B41: Symbol | E41: H | H41: Elektronegativität | K41: 2.1
B42: deutscher Name | E42: Wasserstoff | H42: Verdampfungswärme | K42: 0.108
B43: englischer Name | E43: Hydrogen | H43: Schmelzwärme | K43: 0.014
B44: Atommasse in u | E44: 1.00797 | H44: Wärmeleitfähigkeit | K44: 0.0004
B45: Dichte (g/ml) | E45: 0.071 | H45: Atomvolumen, W/D | K45: 14.1
B46: Schmelzpunkt, °C | E46: -259.2 | H46: Ionenradius, Å | K46: 2.08(-1),-
B47: Siedepunkt, °C | E47: -252.7 | H47: Atomradius, Å | K47: -
B48: Kristallstruktur | E48: hexagonal | H48: kovalenter Radius, Å | K48: 0.32
B49: Spezifische Wärme | E49: 3.45 | H49: spezifische elektr. | K49: -
B50: (cal/g/°C) | H50: Leitfähigkeit
B51: Elektronen- | E51: 1s^1 | H51: Ionisierungsenergie | K51: 313
B52: konfiguration | H52: für das 1. Elektron
B53: Säure-Base- | E53: amphoter | H53: zurück zum PSE
B54: Eigenschaften
C64: Genauere Informationen
B66: Ordnungszahl | E66: 2 | H66: Oxidationszahl | K66: -
B67: Symbol | E67: He | H67: Elektronegativität | K67: -
B68: deutscher Name | E68: Helium | H68: Verdampfungswärme | K68: 0.020
B69: englischer Name | E69: Helium | H69: Schmelzwärme | K69: 0.005
B70: Atommasse in u | E70: 4.0026 | H70: Wärmeleitfähigkeit | K70: 0.0003
B71: Dichte (g/ml) | E71: 0.126 | H71: Atomvolumen, W/D | K71: 31.8
B72: Schmelzpunkt, °C | E72: -269.7 | H72: Ionenradius, Å | K72: - , -
B73: Siedepunkt, °C | E73: -268.9 | H73: Atomradius, Å | K73: -
B74: Kristallstruktur | E74: hexagonal | H74: kovalenter Radius, Å | K74: 0.93
B75: Spezifische Wärme | E75: 1.25 | H75: spezifische elektr. | K75: -
B76: (cal/g/°C) | H76: Leitfähigkeit
B77: Elektronen- | E77: 1s^2 | H77: Ionisierungsenergie | K77: 567
B78: konfiguration | H78: für das 1. Elektron
B79: Säure-Base- | E79: - | H79: zurück zum PSE
B80: Eigenschaften
C90: Genauere Informationen
B92: Ordnungszahl | E92: 3 | H92: Oxidationszahl | K92: 1
B93: Symbol | E93: Li | H93: Elektronegativität | K93: 1.0
B94: deutscher Name | E94: Lithium | H94: Verdampfungswärme | K94: 32.48
B95: englischer Name | E95: Lithium | H95: Schmelzwärme | K95: 0.72
B96: Atommasse in u | E96: 6.939 | H96: Wärmeleitfähigkeit | K96: 0.17
B97: Dichte (g/ml) | E97: 0.53 | H97: Atomvolumen, W/D | K97: 13.1
B98: Schmelzpunkt, °C | E98: 180.5 | H98: Ionenradius, Å | K98: 0.60(+1),-
B99: Siedepunkt, °C | E99: 1330 | H99: Atomradius, Å | K99: 1.55
B100: Kristallstruktur | E100: kubisch, raumzentriert | H100: kovalenter Radius, Å | K100: 1.23
B101: Spezifische Wärme | E101: 0.79 | H101: spezifische elektr. | K101: 0.108
B102: (cal/g/°C) | H102: Leitfähigkeit
B103: Elektronen- | E103: 1s^2 2s^1 | H103: Ionisierungsenergie | K103: 124
B104: konfiguration | H104: für das 1. Elektron
B105: Säure-Base- | E105: basisch | H105: zurück zum PSE
B106: Eigenschaften
C116: Genauere Informationen
B118: Ordnungszahl | E118: 4 | H118: Oxidationszahl | K118: 2
B119: Symbol | E119: Be | H119: Elektronegativität | K119: 1.5
B120: deutscher Name | E120: Beryllium | H120: Verdampfungswärme | K120: 73.9
B121: englischer Name | E121: Beryllium | H121: Schmelzwärme | K121: 2.8
B122: Atommasse in u | E122: 9.0122 | H122: Wärmeleitfähigkeit | K122: 0.38
B123: Dichte (g/ml) | E123: 1.85 | H123: Atomvolumen, W/D | K123: 5.0
B124: Schmelzpunkt, °C | E124: 1277 | H124: Ionenradius, Å | K124: 0.31(+2),-
B125: Siedepunkt, °C | E125: 2770 | H125: Atomradius, Å | K125: 1.12
B126: Kristallstruktur | E126: hexagonal | H126: kovalenter Radius, Å | K126: 0.90
B127: Spezifische Wärme | E127: 0.45 | H127: spezifische elektr. | K127: 0.25
B128: (cal/g/°C) | H128: Leitfähigkeit
B129: Elektronen- | E129: 1s^2 2s^2 | H129: Ionisierungsenergie | K129: 215
B130: konfiguration | H130: für das 1. Elektron
B131: Säure-Base- | E131: amphoter | H131: zurück zum PSE
B132: Eigenschaften
C142: Genauere Informationen
B144: Ordnungszahl | E144: 5 | H144: Oxidationszahl | K144: 3
B145: Symbol | E145: B | H145: Elektronegativität | K145: 2.0
B146: deutscher Name | E146: Bor | H146: Verdampfungswärme | K146: 128
B147: englischer Name | E147: Boron | H147: Schmelzwärme | K147: 5.3
B148: Atommasse in u | E148: 10.811 | H148: Wärmeleitfähigkeit | K148: 5.3
B149: Dichte (g/ml) | E149: 2.34 | H149: Atomvolumen, W/D | K149: 4.6
B150: Schmelzpunkt, °C | E150: (2030) | H150: Ionenradius, Å | K150: 0.20(+3),-
B151: Siedepunkt, °C | E151: - | H151: Atomradius, Å | K151: 0.98
B152: Kristallstruktur | E152: hexagonal | H152: kovalenter Radius, Å | K152: 0.82
B153: Spezifische Wärme | E153: 0.309 | H153: spezifische elektr. | K153: 10^-12
B154: (cal/g/°C) | H154: Leitfähigkeit
B155: Elektronen- | E155: 1s^2 2s^2 2p^1 | H155: Ionisierungsenergie | K155: 191
B156: konfiguration | H156: für das 1. Elektron
B157: Säure-Base- | E157: sauer | H157: zurück zum PSE
B158: Eigenschaften
C168: Genauere Informationen
B170: Ordnungszahl | E170: 6 | H170: Oxidationszahl | K170: (+/-) 4,2
B171: Symbol | E171: C | H171: Elektronegativität | K171: 2.5
B172: deutscher Name | E172: Kohlenstoff | H172: Verdampfungswärme | K172: 171.7
B173: englischer Name | E173: Carbon | H173: Schmelzwärme | K173: -
B174: Atommasse in u | E174: 12.01115 | H174: Wärmeleitfähigkeit | K174: 0.057
B175: Dichte (g/ml) | E175: 2.26 | H175: Atomvolumen, W/D | K175: 5.3
B176: Schmelzpunkt, °C | E176: 3727 | H176: Ionenradius, Å | K176: 2.60(-4) , 0.15(+4)
B177: Siedepunkt, °C | E177: 4830 | H177: Atomradius, Å | K177: 0.914
B178: Kristallstruktur | E178: hexagonal | H178: kovalenter Radius, Å | K178: 0.77
B179: Spezifische Wärme | E179: 0.165 | H179: spezifische elektr. | K179: 0.0007
B180: (cal/g/°C) | H180: Leitfähigkeit
B181: Elektronen- | E181: 1s^2 2s^2 2p^2 | H181: Ionisierungsenergie | K181: 260
B182: konfiguration | H182: für das 1. Elektron
B183: Säure-Base- | E183: sauer | H183: zurück zum PSE
B184: Eigenschaften
C193: Genauere Informationen
B195: Ordnungszahl | E195: 7 | H195: Oxidationszahl | K195: (+/-) 3,5,4,2
B196: Symbol | E196: N | H196: Elektronegativität | K196: 3.0
B197: deutscher Name | E197: Stickstoff | H197: Verdampfungswärme | K197: 0.666
B198: englischer Name | E198: Nitrogen | H198: Schmelzwärme | K198: 0.086
B199: Atommasse in u | E199: 14.0067 | H199: Wärmeleitfähigkeit | K199: 0.00006
B200: Dichte (g/ml) | E200: 0.81 | H200: Atomvolumen, W/D | K200: 17.3
B201: Schmelzpunkt, °C | E201: -210 | H201: Ionenradius, Å | K201: 1.17(-3), 0.11(+5)
B202: Siedepunkt, °C | E202: -195.8 | H202: Atomradius, Å | K202: 0.92
B203: Kristallstruktur | E203: hexagonal | H203: kovalenter Radius, Å | K203: 0.75
B204: Spezifische Wärme | E204: 0.247 | H204: spezifische elektr. | K204: -
B205: (cal/g/°C) | H205: Leitfähigkeit
B206: Elektronen- | E206: 1s^2 2s^2 2p^3 | H206: Ionisierungsenergie | K206: 336
B207: konfiguration | H207: für das 1. Elektron
B208: Säure-Base- | E208: sauer | H208: zurück zum PSE
B209: Eigenschaften
C219: Genauere Informationen
B221: Ordnungszahl | E221: 8 | H221: Oxidationszahl | K221: -2
B222: Symbol | E222: O | H222: Elektronegativität | K222: 3.5
B223: deutscher Name | E223: Sauerstoff | H223: Verdampfungswärme | K223: 0.815
B224: englischer Name | E224: Oxygen | H224: Schmelzwärme | K224: 0.053
B225: Atommasse in u | E225: 15.9994 | H225: Wärmeleitfähigkeit | K225: 0.00006
B226: Dichte (g/ml) | E226: 1.14 | H226: Atomvolumen, W/D | K226: 14.0
B227: Schmelzpunkt, °C | E227: -218.8 | H227: Ionenradius, Å | K227: 1.40(-2) , 0.09(+6)
B228: Siedepunkt, °C | E228: -183 | H228: Atomradius, Å | K228: -
B229: Kristallstruktur | E229: kubisch | H229: kovalenter Radius, Å | K229: 0.73
B230: Spezifische Wärme | E230: 0.218 | H230: spezifische elektr. | K230: -
B231: (cal/g/°C) | H231: Leitfähigkeit
B232: Elektronen- | E232: 1s^2 2s^2 2p^4 | H232: Ionisierungsenergie | K232: 314
B233: konfiguration | H233: für das 1. Elektron
B234: Säure-Base- | E234: - | H234: zurück zum PSE
B235: Eigenschaften
C245: Genauere Informationen
B247: Ordnungszahl | E247: 9 | H247: Oxidationszahl | K247: -1
B248: Symbol | E248: F | H248: Elektronegativität | K248: 4
B249: deutscher Name | E249: Fluor | H249: Verdampfungswärme | K249: 0.755
B250: englischer Name | E250: Flourine | H250: Schmelzwärme | K250: 0.061
B251: Atommasse in u | E251: 18.9984 | H251: Wärmeleitfähigkeit | K251: -
B252: Dichte (g/ml) | E252: 1.505 | H252: Atomvolumen, W/D | K252: 17.1
B253: Schmelzpunkt, °C | E253: -219.6 | H253: Ionenradius, Å | K253: 1.36(-1) , 0.07(+7)
B254: Siedepunkt, °C | E254: -188.2 | H254: Atomradius, Å | K254: -
B255: Kristallstruktur | E255: - | H255: kovalenter Radius, Å | K255: 0.72
B256: Spezifische Wärme | E256: 0.18 | H256: spezifische elektr. | K256: -
B257: (cal/g/°C) | H257: Leitfähigkeit
B258: Elektronen- | E258: 1s^2 2s^2 2p^5 | H258: Ionisierungsenergie | K258: 402
B259: konfiguration | H259: für das 1. Elektron
B260: Säure-Base- | E260: - | H260: zurück zum PSE
B261: Eigenschaften
C271: Genauere Informationen
B273: Ordnungszahl | E273: 10 | H273: Oxidationszahl | K273: -
B274: Symbol | E274: Ne | H274: Elektronegativität | K274: -
B275: deutscher Name | E275: Neon | H275: Verdampfungswärme | K275: 0.422
B276: englischer Name | E276: Neon | H276: Schmelzwärme | K276: 0.080
B277: Atommasse in u | E277: 20.183 | H277: Wärmeleitfähigkeit | K277: 0.0001
B278: Dichte (g/ml) | E278: 1.20 | H278: Atomvolumen, W/D | K278: 16.8
B279: Schmelzpunkt, °C | E279: -248.6 | H279: Ionenradius, Å | K279: - , -
B280: Siedepunkt, °C | E280: -246 | H280: Atomradius, Å | K280: -
B281: Kristallstruktur | E281: kubisch, frontzentriert | H281: kovalenter Radius, Å | K281: 0.71
B282: Spezifische Wärme | E282: - | H282: spezifische elektr. | K282: -
B283: (cal/g/°C) | H283: Leitfähigkeit
B284: Elektronen- | E284: 1s^2 2s^2 2p^6 | H284: Ionisierungsenergie | K284: 497
B285: konfiguration | H285: für das 1. Elektron
B286: Säure-Base- | E286: - | H286: zurück zum PSE
B287: Eigenschaften
C297: Genauere Informationen
B299: Ordnungszahl | E299: 11 | H299: Oxidationszahl | K299: 1
B300: Symbol | E300: Na | H300: Elektronegativität | K300: 0.9
B301: deutscher Name | E301: Natrium | H301: Verdampfungswärme | K301: 24.12
B302: englischer Name | E302: Sodium | H302: Schmelzwärme | K302: 0.62
B303: Atommasse in u | E303: 22.9898 | H303: Wärmeleitfähigkeit | K303: 0.32
B304: Dichte (g/ml) | E304: 0.97 | H304: Atomvolumen, W/D | K304: 23.7
B305: Schmelzpunkt, °C | E305: 97.8 | H305: Ionenradius, Å | K305: 0.95(+1) ,-
B306: Siedepunkt, °C | E306: 892 | H306: Atomradius, Å | K306: 1.90
B307: Kristallstruktur | E307: kubisch, raumzentriert | H307: kovalenter Radius, Å | K307: 1.54
B308: Spezifische Wärme | E308: 0.295 | H308: spezifische elektr. | K308: 0.218
B309: (cal/g/°C) | H309: Leitfähigkeit
B310: Elektronen- | E310: [Ne]3s^1 | H310: Ionisierungsenergie | K310: 119
B311: konfiguration | H311: für das 1. Elektron
B312: Säure-Base- | E312: basisch | H312: zurück zum PSE
B313: Eigenschaften
C323: Genauere Informationen
B325: Ordnungszahl | E325: 12 | H325: Oxidationszahl | K325: 2
B326: Symbol | E326: Mg | H326: Elektronegativität | K326: 1.2
... 1643 more rows

Sheet Start
A1: Gesamtmasse der Berechnungen in kg = | D1: =IF(Start!AB2="nein","Demo ENDE",SUM(Rundstahl!D1)+('Rundstahl (-)'!D1)+(Kegelstumpf!C1)+('Kegelstumpf (-)'!C1)+(Vierkant!C1)+('Vierkant (-)'!C1)+(Sechskant!C1)+('Sechskant (-)'!C1)+(Rohr!C1)+('Rohr (-)'!C1)+(Kugel!C1)+('Kugel (-)'!C1)+('Kugelabschnitt +'!C1)+('Kugelabschnitt -'!C1)+(Vielkant!C1)+('Vielkant (-)'!C1)+('Pyramidenstumpf(+)'!E1)+('Pyramidenstumpf(-)'!E1)+('Kugelsektor(+) '!B1)+('Kugelsektor(-)'!B1)+('Zylinderabschnitt(+)'!C1)+('Zylinderabschnitt(-)'!C1)+('Prisma(+)'!D1)+('Prisma(-)'!D1)) -> 0 | G1: 13 | AB1: =TODAY() -> 2021-04-02 | AC1: Ablaufdatum | AE1: =D18 -> © Ulrich Daßler 03.08.2016 | AH1: a
A2: Material | B2: Dichte | C2: Dichte eingeben! | D2: Arbeitsblätter | AB2: =IF(D21=AD3,"ja",IF(AC3>0,"ja","nein")) -> ja | AC2: =AC10000 -> 2020-01-05 | AD2: =IF(AC2=0,AB1+AD1,AC2) -> 2020-01-05 | AE2: =MID($AE$1,17,1) -> 0 | AF2: =AE2+AE9 -> 6 | AG2: =IF(AF2=0,"x",INDEX($AH$1:$AH$18,AF2)) -> f | AH2: b
A3: Aluminium | B3: 2.7 | C3: 0 | AC3: =AC2-AB1 -> -453 | AD3: =CONCATENATE("ULDA",AF2,AG5,AF3,AG4,AF4,AG3,AF5,AG2) -> ULDA6j4x0d10f | AE3: =MID($AE$1,18,1) -> 3 | AF3: =AE3+AE8 -> 4 | AG3: =IF(AF3=0,"x",INDEX($AH$1:$AH$18,AF3)) -> d | AH3: c
A4: AMP8000 | B4: 2.8 | AC4: =IF(AD3=B16,"V",IF(AC3<0,0,AC3)) -> 0 | AE4: =MID($AE$1,20,1) -> 0 | AF4: =AE4+AE7 -> 0 | AG4: x | AH4: d
A5: Titan | B5: 4.5 | AE5: =MID($AE$1,21,1) -> 8 | AF5: =AE5+AE6 -> 10 | AG5: j | AH5: e
A6: Vanadium | B6: 6.1 | C6: Das Periodensystem der Elemente! | AE6: =MID($AE$1,23,1) -> 2 | AH6: f
A7: Chrom | B7: 7.19 | AE7: =MID($AE$1,24,1) -> 0 | AH7: g
A8: Grauguß | B8: 7.2 | AE8: =MID($AE$1,25,1) -> 1 | AH8: h
A9: Zinn | B9: 7.3 | AE9: =MID($AE$1,26,1) -> 6 | AH9: i
A10: CuAl10Ni | B10: 7.7 | AH10: j
A11: Stahl | B11: 7.85 | C11: Excel-Rechner | AH11: k
A12: CuSn | B12: 8.1 | AH12: l
A13: Cobalt | B13: 8.9 | AH13: m
A14: Nickel | B14: 8.9 | AH14: n
A15: Kupfer | B15: 8.96 | E15: =INDEX(Dichten!C4:C160,Start!G1) -> 2.4 | AH15: o
A16: Silber(Ag) | B16: 10.5 | C16: setzt alle Eingaben auf 0 zurück | AH16: p
A17: HM (K20) | B17: 14.8 | D17: heutiges Datum: | E17: =TODAY() -> 2021-04-02 | AH17: q
A18: Gold(Au) | B18: 19.3 | D18: © Ulrich Daßler 03.08.2016 | AH18: r
D20: =IF(D21=AD3,"Vollversion",CONCATENATE("Demoversion ist noch ",AC4," Tage aktiv!")) -> Vollversion
D21: ULDA6j4x0d10f
D22: =IF(AB2="ja","","Bitte Freischaltcode für Vollversion unter info@dasslers.de anfordern und in Zelle D21 eintragen!") -> 
AC10000: 2020-01-05

Sheet Rundstahl
A1: Gesamtmasse = | D1: =IF(Start!AB2="nein","Demo ENDE",SUM(E5:E36)) -> 0
A2: Massetabelle Rundstahl (+): Durchmesser (d), Höhe (h) in mm eingeben!
A3: Heutiges Datum: | B3: =TODAY() -> 2021-04-02
A4: d | B4: h | C4: TF | D4: Dichte | E4: Rundst.(kg)
A5: 0 | B5: 0 | C5: 1 | D5: =Start!$C$3 -> 0 | E5: =((A5*A5*(PI()/4)*B5*D5)/1000000)/C5 -> 0
A6: 0 | B6: 0 | C6: 1 | D6: =Start!$C$3 -> 0 | E6: =((A6*A6*(PI()/4)*B6*D6)/1000000)/C6 -> 0
A7: 0 | B7: 0 | C7: 1 | D7: =Start!$C$3 -> 0 | E7: =((A7*A7*(PI()/4)*B7*D7)/1000000)/C7 -> 0
A8: 0 | B8: 0 | C8: 1 | D8: =Start!$C$3 -> 0 | E8: 0
A9: 0 | B9: 0 | C9: 1 | D9: =Start!$C$3 -> 0 | E9: 0
A10: 0 | B10: 0 | C10: 1 | D10: =Start!$C$3 -> 0 | E10: 0
A11: 0 | B11: 0 | C11: 1 | D11: =Start!$C$3 -> 0 | E11: 0
A12: 0 | B12: 0 | C12: 1 | D12: =Start!$C$3 -> 0 | E12: 0
A13: 0 | B13: 0 | C13: 1 | D13: =Start!$C$3 -> 0 | E13: 0
A14: 0 | B14: 0 | C14: 1 | D14: =Start!$C$3 -> 0 | E14: 0
A15: 0 | B15: 0 | C15: 1 | D15: =Start!$C$3 -> 0 | E15: 0
A16: 0 | B16: 0 | C16: 1 | D16: =Start!$C$3 -> 0 | E16: 0
A17: 0 | B17: 0 | C17: 1 | D17: =Start!$C$3 -> 0 | E17: 0
A18: 0 | B18: 0 | C18: 1 | D18: =Start!$C$3 -> 0 | E18: 0
A19: 0 | B19: 0 | C19: 1 | D19: =Start!$C$3 -> 0 | E19: 0
A20: 0 | B20: 0 | C20: 1 | D20: =Start!$C$3 -> 0 | E20: 0
A21: 0 | B21: 0 | C21: 1 | D21: =Start!$C$3 -> 0 | E21: 0
A22: 0 | B22: 0 | C22: 1 | D22: =Start!$C$3 -> 0 | E22: 0
A23: 0 | B23: 0 | C23: 1 | D23: =Start!$C$3 -> 0 | E23: 0
A24: 0 | B24: 0 | C24: 1 | D24: =Start!$C$3 -> 0 | E24: 0
A25: 0 | B25: 0 | C25: 1 | D25: =Start!$C$3 -> 0 | E25: 0
A26: 0 | B26: 0 | C26: 1 | D26: =Start!$C$3 -> 0 | E26: 0
A27: 0 | B27: 0 | C27: 1 | D27: =Start!$C$3 -> 0 | E27: 0
A28: 0 | B28: 0 | C28: 1 | D28: =Start!$C$3 -> 0 | E28: 0
A29: 0 | B29: 0 | C29: 1 | D29: =Start!$C$3 -> 0 | E29: 0
A30: 0 | B30: 0 | C30: 1 | D30: =Start!$C$3 -> 0 | E30: 0
A31: 0 | B31: 0 | C31: 1 | D31: =Start!$C$3 -> 0 | E31: 0
A32: 0 | B32: 0 | C32: 1 | D32: =Start!$C$3 -> 0 | E32: 0
A33: 0 | B33: 0 | C33: 1 | D33: =Start!$C$3 -> 0 | E33: 0
A34: 0 | B34: 0 | C34: 1 | D34: =Start!$C$3 -> 0 | E34: 0
A35: 0 | B35: 0 | C35: 1 | D35: =Start!$C$3 -> 0 | E35: 0
A36: 0 | B36: 0 | C36: 1 | D36: =Start!$C$3 -> 0 | E36: 0

Sheet Rundstahl (-)
A1: Gesamtmasse= | D1: =IF(Start!AB2="nein","Demo ENDE",SUM(E5:E36)) -> 0
A2: Massetabelle Rundstahl (-): Durchmesser (d), Höhe (h) in mm eingeben!
A3: Heutiges Datum: | B3: =TODAY() -> 2021-04-02
A4: d | B4: h | C4: TF | D4: Dichte | E4: Rundst.(kg)
A5: 0 | B5: 0 | C5: 1 | D5: =Start!$C$3 -> 0 | E5: =(((A5*A5*(PI()/4)*B5*D5)/1000000)-(2*((A5*A5*(PI()/4)*B5*D5)/1000000)))/C5 -> 0
A6: 0 | B6: 0 | C6: 1 | D6: =Start!$C$3 -> 0 | E6: =(((A6*A6*(PI()/4)*B6*D6)/1000000)-(2*((A6*A6*(PI()/4)*B6*D6)/1000000)))/C6 -> 0
A7: 0 | B7: 0 | C7: 1 | D7: =Start!$C$3 -> 0 | E7: 0
A8: 0 | B8: 0 | C8: 1 | D8: =Start!$C$3 -> 0 | E8: 0
A9: 0 | B9: 0 | C9: 1 | D9: =Start!$C$3 -> 0 | E9: 0
A10: 0 | B10: 0 | C10: 1 | D10: =Start!$C$3 -> 0 | E10: 0
A11: 0 | B11: 0 | C11: 1 | D11: =Start!$C$3 -> 0 | E11: 0
A12: 0 | B12: 0 | C12: 1 | D12: =Start!$C$3 -> 0 | E12: 0
A13: 0 | B13: 0 | C13: 1 | D13: =Start!$C$3 -> 0 | E13: 0
A14: 0 | B14: 0 | C14: 1 | D14: =Start!$C$3 -> 0 | E14: 0
A15: 0 | B15: 0 | C15: 1 | D15: =Start!$C$3 -> 0 | E15: 0
A16: 0 | B16: 0 | C16: 1 | D16: =Start!$C$3 -> 0 | E16: 0
A17: 0 | B17: 0 | C17: 1 | D17: =Start!$C$3 -> 0 | E17: 0
A18: 0 | B18: 0 | C18: 1 | D18: =Start!$C$3 -> 0 | E18: 0
A19: 0 | B19: 0 | C19: 1 | D19: =Start!$C$3 -> 0 | E19: 0
A20: 0 | B20: 0 | C20: 1 | D20: =Start!$C$3 -> 0 | E20: 0
A21: 0 | B21: 0 | C21: 1 | D21: =Start!$C$3 -> 0 | E21: 0
A22: 0 | B22: 0 | C22: 1 | D22: =Start!$C$3 -> 0 | E22: 0
A23: 0 | B23: 0 | C23: 1 | D23: =Start!$C$3 -> 0 | E23: 0
A24: 0 | B24: 0 | C24: 1 | D24: =Start!$C$3 -> 0 | E24: 0
A25: 0 | B25: 0 | C25: 1 | D25: =Start!$C$3 -> 0 | E25: 0
A26: 0 | B26: 0 | C26: 1 | D26: =Start!$C$3 -> 0 | E26: 0
A27: 0 | B27: 0 | C27: 1 | D27: =Start!$C$3 -> 0 | E27: 0
A28: 0 | B28: 0 | C28: 1 | D28: =Start!$C$3 -> 0 | E28: 0
A29: 0 | B29: 0 | C29: 1 | D29: =Start!$C$3 -> 0 | E29: 0
A30: 0 | B30: 0 | C30: 1 | D30: =Start!$C$3 -> 0 | E30: 0
A31: 0 | B31: 0 | C31: 1 | D31: =Start!$C$3 -> 0 | E31: 0
A32: 0 | B32: 0 | C32: 1 | D32: =Start!$C$3 -> 0 | E32: 0
A33: 0 | B33: 0 | C33: 1 | D33: =Start!$C$3 -> 0 | E33: 0
A34: 0 | B34: 0 | C34: 1 | D34: =Start!$C$3 -> 0 | E34: 0
A35: 0 | B35: 0 | C35: 1 | D35: =Start!$C$3 -> 0 | E35: 0
A36: 0 | B36: 0 | C36: 1 | D36: =Start!$C$3 -> 0 | E36: 0

Sheet Kegelstumpf
A1: Gesamtmasse= | C1: =IF(Start!AB2="nein","Demo ENDE",SUM(F5:F36)) -> 0
A2: Massetabelle Kegelstumpf (+) : Durchmesser (D), Höhe (h),
A3: kleiner Durchmesser bei Kegelstumpf (d) in mm eingeben!
A4: D | B4: d | C4: h | D4: TF | E4: Dichte | F4: Masse in kg
A5: 0 | B5: 0 | C5: 0 | D5: 1 | E5: =Start!$C$3 -> 0 | F5: =((1.047197551*C5*(((A5/2)*(A5/2))+((A5/2)*(B5/2))+((B5/2)*(B5/2)))*E5)/1000000)/D5 -> 0
A6: 0 | B6: 0 | C6: 0 | D6: 1 | E6: =Start!$C$3 -> 0 | F6: =((1.047197551*C6*(((A6/2)*(A6/2))+((A6/2)*(B6/2))+((B6/2)*(B6/2)))*E6)/1000000)/D6 -> 0
A7: 0 | B7: 0 | C7: 0 | D7: 1 | E7: =Start!$C$3 -> 0 | F7: 0
A8: 0 | B8: 0 | C8: 0 | D8: 1 | E8: =Start!$C$3 -> 0 | F8: 0
A9: 0 | B9: 0 | C9: 0 | D9: 1 | E9: =Start!$C$3 -> 0 | F9: 0
A10: 0 | B10: 0 | C10: 0 | D10: 1 | E10: =Start!$C$3 -> 0 | F10: 0
A11: 0 | B11: 0 | C11: 0 | D11: 1 | E11: =Start!$C$3 -> 0 | F11: 0
A12: 0 | B12: 0 | C12: 0 | D12: 1 | E12: =Start!$C$3 -> 0 | F12: 0
A13: 0 | B13: 0 | C13: 0 | D13: 1 | E13: =Start!$C$3 -> 0 | F13: 0
A14: 0 | B14: 0 | C14: 0 | D14: 1 | E14: =Start!$C$3 -> 0 | F14: 0
A15: 0 | B15: 0 | C15: 0 | D15: 1 | E15: =Start!$C$3 -> 0 | F15: 0
A16: 0 | B16: 0 | C16: 0 | D16: 1 | E16: =Start!$C$3 -> 0 | F16: 0
A17: 0 | B17: 0 | C17: 0 | D17: 1 | E17: =Start!$C$3 -> 0 | F17: 0
A18: 0 | B18: 0 | C18: 0 | D18: 1 | E18: =Start!$C$3 -> 0 | F18: 0
A19: 0 | B19: 0 | C19: 0 | D19: 1 | E19: =Start!$C$3 -> 0 | F19: 0
A20: 0 | B20: 0 | C20: 0 | D20: 1 | E20: =Start!$C$3 -> 0 | F20: 0
A21: 0 | B21: 0 | C21: 0 | D21: 1 | E21: =Start!$C$3 -> 0 | F21: 0
A22: 0 | B22: 0 | C22: 0 | D22: 1 | E22: =Start!$C$3 -> 0 | F22: 0
A23: 0 | B23: 0 | C23: 0 | D23: 1 | E23: =Start!$C$3 -> 0 | F23: 0
A24: 0 | B24: 0 | C24: 0 | D24: 1 | E24: =Start!$C$3 -> 0 | F24: 0
A25: 0 | B25: 0 | C25: 0 | D25: 1 | E25: =Start!$C$3 -> 0 | F25: 0
A26: 0 | B26: 0 | C26: 0 | D26: 1 | E26: =Start!$C$3 -> 0 | F26: 0
A27: 0 | B27: 0 | C27: 0 | D27: 1 | E27: =Start!$C$3 -> 0 | F27: 0
A28: 0 | B28: 0 | C28: 0 | D28: 1 | E28: =Start!$C$3 -> 0 | F28: 0
A29: 0 | B29: 0 | C29: 0 | D29: 1 | E29: =Start!$C$3 -> 0 | F29: 0
A30: 0 | B30: 0 | C30: 0 | D30: 1 | E30: =Start!$C$3 -> 0 | F30: 0
A31: 0 | B31: 0 | C31: 0 | D31: 1 | E31: =Start!$C$3 -> 0 | F31: 0
A32: 0 | B32: 0 | C32: 0 | D32: 1 | E32: =Start!$C$3 -> 0 | F32: 0
A33: 0 | B33: 0 | C33: 0 | D33: 1 | E33: =Start!$C$3 -> 0 | F33: 0
A34: 0 | B34: 0 | C34: 0 | D34: 1 | E34: =Start!$C$3 -> 0 | F34: 0
A35: 0 | B35: 0 | C35: 0 | D35: 1 | E35: =Start!$C$3 -> 0 | F35: 0
A36: 0 | B36: 0 | C36: 0 | D36: 1 | E36: =Start!$C$3 -> 0 | F36: 0

Sheet Kegelstumpf (-)
A1: Gesamtmasse= | C1: =IF(Start!AB2="nein","Demo ENDE",SUM(F5:F36)) -> 0
A2: Massetabelle Kegelstumpf (-) : Durchmesser (D), Höhe (h),
A3: kleiner Durchmesser bei Kegelstumpf (d) in mm eingeben!
A4: D | B4: d | C4: h | D4: TF | E4: Dichte | F4: Kegelstumpf
A5: 0 | B5: 0 | C5: 0 | D5: 1 | E5: =Start!$C$3 -> 0 | F5: =(((1.047197551*C5*(((A5/2)*(A5/2))+((A5/2)*(B5/2))+((B5/2)*(B5/2)))*E5)/1000000)-(2*(((1.047197551*C5*(((A5/2)*(A5/2))+((A5/2)*(B5/2))+((B5/2)*(B5/2)))*E5)/1000000))))/D5 -> 0
A6: 0 | B6: 0 | C6: 0 | D6: 1 | E6: =Start!$C$3 -> 0 | F6: =(((1.047197551*C6*(((A6/2)*(A6/2))+((A6/2)*(B6/2))+((B6/2)*(B6/2)))*E6)/1000000)-(2*(((1.047197551*C6*(((A6/2)*(A6/2))+((A6/2)*(B6/2))+((B6/2)*(B6/2)))*E6)/1000000))))/D6 -> 0
A7: 0 | B7: 0 | C7: 0 | D7: 1 | E7: =Start!$C$3 -> 0 | F7: 0
A8: 0 | B8: 0 | C8: 0 | D8: 1 | E8: =Start!$C$3 -> 0 | F8: 0
A9: 0 | B9: 0 | C9: 0 | D9: 1 | E9: =Start!$C$3 -> 0 | F9: 0
A10: 0 | B10: 0 | C10: 0 | D10: 1 | E10: =Start!$C$3 -> 0 | F10: 0
A11: 0 | B11: 0 | C11: 0 | D11: 1 | E11: =Start!$C$3 -> 0 | F11: 0
A12: 0 | B12: 0 | C12: 0 | D12: 1 | E12: =Start!$C$3 -> 0 | F12: 0
A13: 0 | B13: 0 | C13: 0 | D13: 1 | E13: =Start!$C$3 -> 0 | F13: 0
A14: 0 | B14: 0 | C14: 0 | D14: 1 | E14: =Start!$C$3 -> 0 | F14: 0
A15: 0 | B15: 0 | C15: 0 | D15: 1 | E15: =Start!$C$3 -> 0 | F15: 0
A16: 0 | B16: 0 | C16: 0 | D16: 1 | E16: =Start!$C$3 -> 0 | F16: 0
A17: 0 | B17: 0 | C17: 0 | D17: 1 | E17: =Start!$C$3 -> 0 | F17: 0
A18: 0 | B18: 0 | C18: 0 | D18: 1 | E18: =Start!$C$3 -> 0 | F18: 0
A19: 0 | B19: 0 | C19: 0 | D19: 1 | E19: =Start!$C$3 -> 0 | F19: 0
A20: 0 | B20: 0 | C20: 0 | D20: 1 | E20: =Start!$C$3 -> 0 | F20: 0
A21: 0 | B21: 0 | C21: 0 | D21: 1 | E21: =Start!$C$3 -> 0 | F21: 0
A22: 0 | B22: 0 | C22: 0 | D22: 1 | E22: =Start!$C$3 -> 0 | F22: 0
A23: 0 | B23: 0 | C23: 0 | D23: 1 | E23: =Start!$C$3 -> 0 | F23: 0
A24: 0 | B24: 0 | C24: 0 | D24: 1 | E24: =Start!$C$3 -> 0 | F24: 0
A25: 0 | B25: 0 | C25: 0 | D25: 1 | E25: =Start!$C$3 -> 0 | F25: 0
A26: 0 | B26: 0 | C26: 0 | D26: 1 | E26: =Start!$C$3 -> 0 | F26: 0
A27: 0 | B27: 0 | C27: 0 | D27: 1 | E27: =Start!$C$3 -> 0 | F27: 0
A28: 0 | B28: 0 | C28: 0 | D28: 1 | E28: =Start!$C$3 -> 0 | F28: 0
A29: 0 | B29: 0 | C29: 0 | D29: 1 | E29: =Start!$C$3 -> 0 | F29: 0
A30: 0 | B30: 0 | C30: 0 | D30: 1 | E30: =Start!$C$3 -> 0 | F30: 0
A31: 0 | B31: 0 | C31: 0 | D31: 1 | E31: =Start!$C$3 -> 0 | F31: 0
A32: 0 | B32: 0 | C32: 0 | D32: 1 | E32: =Start!$C$3 -> 0 | F32: 0
A33: 0 | B33: 0 | C33: 0 | D33: 1 | E33: =Start!$C$3 -> 0 | F33: 0
A34: 0 | B34: 0 | C34: 0 | D34: 1 | E34: =Start!$C$3 -> 0 | F34: 0
A35: 0 | B35: 0 | C35: 0 | D35: 1 | E35: =Start!$C$3 -> 0 | F35: 0
A36: 0 | B36: 0 | C36: 0 | D36: 1 | E36: =Start!$C$3 -> 0 | F36: 0

Sheet Vierkant
A1: Gesamtmasse= | C1: =IF(Start!AB2="nein","Demo ENDE",SUM(E5:E36)) -> 0
A2: Massetabelle Vierkant (+) : Länge (l), Breite (b), Höhe (h), in mm eingeben!
A3: Heutiges Datum: | B3: =TODAY() -> 2021-04-02
A4: l | B4: b | C4: h | D4: Dichte | E4: Vierkant (kg)
A5: 0 | B5: 0 | C5: 0 | D5: =Start!$C$3 -> 0 | E5: =(A5*B5*C5*D5)/1000000 -> 0
A6: 0 | B6: 0 | C6: 0 | D6: =Start!$C$3 -> 0 | E6: 0
A7: 0 | B7: 0 | C7: 0 | D7: =Start!$C$3 -> 0 | E7: 0
A8: 0 | B8: 0 | C8: 0 | D8: =Start!$C$3 -> 0 | E8: 0
A9: 0 | B9: 0 | C9: 0 | D9: =Start!$C$3 -> 0 | E9: 0
A10: 0 | B10: 0 | C10: 0 | D10: =Start!$C$3 -> 0 | E10: 0
A11: 0 | B11: 0 | C11: 0 | D11: =Start!$C$3 -> 0 | E11: 0
A12: 0 | B12: 0 | C12: 0 | D12: =Start!$C$3 -> 0 | E12: 0
A13: 0 | B13: 0 | C13: 0 | D13: =Start!$C$3 -> 0 | E13: 0
A14: 0 | B14: 0 | C14: 0 | D14: =Start!$C$3 -> 0 | E14: 0
A15: 0 | B15: 0 | C15: 0 | D15: =Start!$C$3 -> 0 | E15: 0
A16: 0 | B16: 0 | C16: 0 | D16: =Start!$C$3 -> 0 | E16: 0
A17: 0 | B17: 0 | C17: 0 | D17: =Start!$C$3 -> 0 | E17: 0
A18: 0 | B18: 0 | C18: 0 | D18: =Start!$C$3 -> 0 | E18: 0
A19: 0 | B19: 0 | C19: 0 | D19: =Start!$C$3 -> 0 | E19: 0
A20: 0 | B20: 0 | C20: 0 | D20: =Start!$C$3 -> 0 | E20: 0
A21: 0 | B21: 0 | C21: 0 | D21: =Start!$C$3 -> 0 | E21: 0
A22: 0 | B22: 0 | C22: 0 | D22: =Start!$C$3 -> 0 | E22: 0
A23: 0 | B23: 0 | C23: 0 | D23: =Start!$C$3 -> 0 | E23: 0
A24: 0 | B24: 0 | C24: 0 | D24: =Start!$C$3 -> 0 | E24: 0
A25: 0 | B25: 0 | C25: 0 | D25: =Start!$C$3 -> 0 | E25: 0
A26: 0 | B26: 0 | C26: 0 | D26: =Start!$C$3 -> 0 | E26: 0
A27: 0 | B27: 0 | C27: 0 | D27: =Start!$C$3 -> 0 | E27: 0
A28: 0 | B28: 0 | C28: 0 | D28: =Start!$C$3 -> 0 | E28: 0
A29: 0 | B29: 0 | C29: 0 | D29: =Start!$C$3 -> 0 | E29: 0
A30: 0 | B30: 0 | C30: 0 | D30: =Start!$C$3 -> 0 | E30: 0
A31: 0 | B31: 0 | C31: 0 | D31: =Start!$C$3 -> 0 | E31: 0
A32: 0 | B32: 0 | C32: 0 | D32: =Start!$C$3 -> 0 | E32: 0
A33: 0 | B33: 0 | C33: 0 | D33: =Start!$C$3 -> 0 | E33: 0
A34: 0 | B34: 0 | C34: 0 | D34: =Start!$C$3 -> 0 | E34: 0
A35: 0 | B35: 0 | C35: 0 | D35: =Start!$C$3 -> 0 | E35: 0
A36: 0 | B36: 0 | C36: 0 | D36: =Start!$C$3 -> 0 | E36: 0

Sheet Vierkant (-)
A1: Gesamtmasse= | C1: =IF(Start!AB2="nein","Demo ENDE",SUM(E5:E36)) -> 0
A2: Massetabelle Vierkant (-) : Länge (l), Breite (b), Höhe (h), in mm eingeben!
A3: Heutiges Datum: | B3: =TODAY() -> 2021-04-02
A4: l | B4: b | C4: h | D4: Dichte | E4: Vierkant (kg)
A5: 0 | B5: 0 | C5: 0 | D5: =Start!$C$3 -> 0 | E5: =((A5*B5*C5*D5)/1000000)-(2*((A5*B5*C5*D5)/1000000)) -> 0
A6: 0 | B6: 0 | C6: 0 | D6: =Start!$C$3 -> 0 | E6: =((A6*B6*C6*D6)/1000000)-(2*((A6*B6*C6*D6)/1000000)) -> 0
A7: 0 | B7: 0 | C7: 0 | D7: =Start!$C$3 -> 0 | E7: 0
A8: 0 | B8: 0 | C8: 0 | D8: =Start!$C$3 -> 0 | E8: 0
A9: 0 | B9: 0 | C9: 0 | D9: =Start!$C$3 -> 0 | E9: 0
A10: 0 | B10: 0 | C10: 0 | D10: =Start!$C$3 -> 0 | E10: 0
A11: 0 | B11: 0 | C11: 0 | D11: =Start!$C$3 -> 0 | E11: 0
A12: 0 | B12: 0 | C12: 0 | D12: =Start!$C$3 -> 0 | E12: 0
A13: 0 | B13: 0 | C13: 0 | D13: =Start!$C$3 -> 0 | E13: 0
A14: 0 | B14: 0 | C14: 0 | D14: =Start!$C$3 -> 0 | E14: 0
A15: 0 | B15: 0 | C15: 0 | D15: =Start!$C$3 -> 0 | E15: 0
A16: 0 | B16: 0 | C16: 0 | D16: =Start!$C$3 -> 0 | E16: 0
A17: 0 | B17: 0 | C17: 0 | D17: =Start!$C$3 -> 0 | E17: 0
A18: 0 | B18: 0 | C18: 0 | D18: =Start!$C$3 -> 0 | E18: 0
A19: 0 | B19: 0 | C19: 0 | D19: =Start!$C$3 -> 0 | E19: 0
A20: 0 | B20: 0 | C20: 0 | D20: =Start!$C$3 -> 0 | E20: 0
A21: 0 | B21: 0 | C21: 0 | D21: =Start!$C$3 -> 0 | E21: 0
A22: 0 | B22: 0 | C22: 0 | D22: =Start!$C$3 -> 0 | E22: 0
A23: 0 | B23: 0 | C23: 0 | D23: =Start!$C$3 -> 0 | E23: 0
A24: 0 | B24: 0 | C24: 0 | D24: =Start!$C$3 -> 0 | E24: 0
A25: 0 | B25: 0 | C25: 0 | D25: =Start!$C$3 -> 0 | E25: 0
A26: 0 | B26: 0 | C26: 0 | D26: =Start!$C$3 -> 0 | E26: 0
A27: 0 | B27: 0 | C27: 0 | D27: =Start!$C$3 -> 0 | E27: 0
A28: 0 | B28: 0 | C28: 0 | D28: =Start!$C$3 -> 0 | E28: 0
A29: 0 | B29: 0 | C29: 0 | D29: =Start!$C$3 -> 0 | E29: 0
A30: 0 | B30: 0 | C30: 0 | D30: =Start!$C$3 -> 0 | E30: 0
A31: 0 | B31: 0 | C31: 0 | D31: =Start!$C$3 -> 0 | E31: 0
A32: 0 | B32: 0 | C32: 0 | D32: =Start!$C$3 -> 0 | E32: 0
A33: 0 | B33: 0 | C33: 0 | D33: =Start!$C$3 -> 0 | E33: 0
A34: 0 | B34: 0 | C34: 0 | D34: =Start!$C$3 -> 0 | E34: 0
A35: 0 | B35: 0 | C35: 0 | D35: =Start!$C$3 -> 0 | E35: 0
A36: 0 | B36: 0 | C36: 0 | D36: =Start!$C$3 -> 0 | E36: 0

Sheet Sechskant
A1: Gesamtmasse = | C1: =IF(Start!AB2="nein","Demo ENDE",SUM(D5:D36)) -> 0
A2: Massetabelle Sechskant (+): Länge (L) und Schlüsselweite (SW) in mm eingeben!
A3: Heutiges Datum: | B3: =TODAY() -> 2021-04-02
A4: L | B4: SW | C4: Dichte | D4: Sechskant(kg)
A5: 0 | B5: 0 | C5: =Start!$C$3 -> 0 | D5: =2*(B5/2*B5/2)*1.732050808*A5*C5/1000000 -> 0
A6: 0 | B6: 0 | C6: =Start!$C$3 -> 0 | D6: 0
A7: 0 | B7: 0 | C7: =Start!$C$3 -> 0 | D7: 0
A8: 0 | B8: 0 | C8: =Start!$C$3 -> 0 | D8: 0
A9: 0 | B9: 0 | C9: =Start!$C$3 -> 0 | D9: 0
A10: 0 | B10: 0 | C10: =Start!$C$3 -> 0 | D10: 0
A11: 0 | B11: 0 | C11: =Start!$C$3 -> 0 | D11: 0
A12: 0 | B12: 0 | C12: =Start!$C$3 -> 0 | D12: 0
A13: 0 | B13: 0 | C13: =Start!$C$3 -> 0 | D13: 0
A14: 0 | B14: 0 | C14: =Start!$C$3 -> 0 | D14: 0
A15: 0 | B15: 0 | C15: =Start!$C$3 -> 0 | D15: 0
A16: 0 | B16: 0 | C16: =Start!$C$3 -> 0 | D16: 0
A17: 0 | B17: 0 | C17: =Start!$C$3 -> 0 | D17: 0
A18: 0 | B18: 0 | C18: =Start!$C$3 -> 0 | D18: 0
A19: 0 | B19: 0 | C19: =Start!$C$3 -> 0 | D19: 0
A20: 0 | B20: 0 | C20: =Start!$C$3 -> 0 | D20: 0
A21: 0 | B21: 0 | C21: =Start!$C$3 -> 0 | D21: 0
A22: 0 | B22: 0 | C22: =Start!$C$3 -> 0 | D22: 0
A23: 0 | B23: 0 | C23: =Start!$C$3 -> 0 | D23: 0
A24: 0 | B24: 0 | C24: =Start!$C$3 -> 0 | D24: 0
A25: 0 | B25: 0 | C25: =Start!$C$3 -> 0 | D25: 0
A26: 0 | B26: 0 | C26: =Start!$C$3 -> 0 | D26: 0
A27: 0 | B27: 0 | C27: =Start!$C$3 -> 0 | D27: 0
A28: 0 | B28: 0 | C28: =Start!$C$3 -> 0 | D28: 0
A29: 0 | B29: 0 | C29: =Start!$C$3 -> 0 | D29: 0
A30: 0 | B30: 0 | C30: =Start!$C$3 -> 0 | D30: 0
A31: 0 | B31: 0 | C31: =Start!$C$3 -> 0 | D31: 0
A32: 0 | B32: 0 | C32: =Start!$C$3 -> 0 | D32: 0
A33: 0 | B33: 0 | C33: =Start!$C$3 -> 0 | D33: 0
A34: 0 | B34: 0 | C34: =Start!$C$3 -> 0 | D34: 0
A35: 0 | B35: 0 | C35: =Start!$C$3 -> 0 | D35: 0
A36: 0 | B36: 0 | C36: =Start!$C$3 -> 0 | D36: 0

Sheet Sechskant (-)
A1: Gesamtmasse = | C1: =IF(Start!AB2="nein","Demo ENDE",SUM(D5:D36)) -> 0
A2: Massetabelle Sechskant (-): Länge (L) und Schlüsselweite (SW) in mm eingeben!
A3: Heutiges Datum: | B3: =TODAY() -> 2021-04-02
A4: L | B4: SW | C4: Dichte | D4: Sechskant(kg)
A5: 0 | B5: 0 | C5: =Start!$C$3 -> 0 | D5: =(2*(B5/2*B5/2)*1.732050808*A5*C5/1000000)-(2*(2*(B5/2*B5/2)*1.732050808*A5*C5/1000000)) -> 0
A6: 0 | B6: 0 | C6: =Start!$C$3 -> 0 | D6: =(2*(B6/2*B6/2)*1.732050808*A6*C6/1000000)-(2*(2*(B6/2*B6/2)*1.732050808*A6*C6/1000000)) -> 0
A7: 0 | B7: 0 | C7: =Start!$C$3 -> 0 | D7: 0
A8: 0 | B8: 0 | C8: =Start!$C$3 -> 0 | D8: 0
A9: 0 | B9: 0 | C9: =Start!$C$3 -> 0 | D9: 0
A10: 0 | B10: 0 | C10: =Start!$C$3 -> 0 | D10: 0
A11: 0 | B11: 0 | C11: =Start!$C$3 -> 0 | D11: 0
A12: 0 | B12: 0 | C12: =Start!$C$3 -> 0 | D12: 0
A13: 0 | B13: 0 | C13: =Start!$C$3 -> 0 | D13: 0
A14: 0 | B14: 0 | C14: =Start!$C$3 -> 0 | D14: 0
A15: 0 | B15: 0 | C15: =Start!$C$3 -> 0 | D15: 0
A16: 0 | B16: 0 | C16: =Start!$C$3 -> 0 | D16: 0
A17: 0 | B17: 0 | C17: =Start!$C$3 -> 0 | D17: 0
A18: 0 | B18: 0 | C18: =Start!$C$3 -> 0 | D18: 0
A19: 0 | B19: 0 | C19: =Start!$C$3 -> 0 | D19: 0
A20: 0 | B20: 0 | C20: =Start!$C$3 -> 0 | D20: 0
A21: 0 | B21: 0 | C21: =Start!$C$3 -> 0 | D21: 0
A22: 0 | B22: 0 | C22: =Start!$C$3 -> 0 | D22: 0
A23: 0 | B23: 0 | C23: =Start!$C$3 -> 0 | D23: 0
A24: 0 | B24: 0 | C24: =Start!$C$3 -> 0 | D24: 0
A25: 0 | B25: 0 | C25: =Start!$C$3 -> 0 | D25: 0
A26: 0 | B26: 0 | C26: =Start!$C$3 -> 0 | D26: 0
A27: 0 | B27: 0 | C27: =Start!$C$3 -> 0 | D27: 0
A28: 0 | B28: 0 | C28: =Start!$C$3 -> 0 | D28: 0
A29: 0 | B29: 0 | C29: =Start!$C$3 -> 0 | D29: 0
A30: 0 | B30: 0 | C30: =Start!$C$3 -> 0 | D30: 0
A31: 0 | B31: 0 | C31: =Start!$C$3 -> 0 | D31: 0
A32: 0 | B32: 0 | C32: =Start!$C$3 -> 0 | D32: 0
A33: 0 | B33: 0 | C33: =Start!$C$3 -> 0 | D33: 0
A34: 0 | B34: 0 | C34: =Start!$C$3 -> 0 | D34: 0
A35: 0 | B35: 0 | C35: =Start!$C$3 -> 0 | D35: 0
A36: 0 | B36: 0 | C36: =Start!$C$3 -> 0 | D36: 0

Sheet Vielkant
A1: Gesamtmasse = | C1: =IF(Start!AB2="nein","Demo ENDE",SUM(I6:I37)) -> 0
A2: Massetabelle Vielkant (+) | D2: EM= Eckenmaß in mm, nur gültig bei geraden Ecken
A3: SW=Schlüsselweite in mm | D3: Ez=Eckenanzahl | F3: L=Länge | G3: S=Seitenfläche in mm
A4: A= Flächeninhalt in mm hoch 2 | D4: V= Volumen in dm hoch 3 | G4: m=Masse in kg
A5: SW | B5: Ez | C5: L | D5: Dichte | E5: EM | F5: S | G5: A | H5: V | I5: m in kg
A6: 0 | B6: 6 | C6: 0 | D6: =Start!$C$3 -> 0 | E6: =(SQRT(((0.5*A6)*(0.5*A6))+((0.5*F6)*(0.5*F6))))*2 -> 0 | F6: =TAN(((360/B6/2)*PI()/180))*A6 -> 0 | G6: =0.5*F6*0.5*A6*B6 -> 0 | H6: =(G6*C6)/1000000 -> 0 | I6: =H6*D6 -> 0
A7: 0 | B7: 6 | C7: 0 | D7: =Start!$C$3 -> 0 | E7: 0 | F7: 0 | G7: 0 | H7: 0 | I7: 0
A8: 0 | B8: 6 | C8: 0 | D8: =Start!$C$3 -> 0 | E8: 0 | F8: 0 | G8: 0 | H8: 0 | I8: 0
A9: 0 | B9: 6 | C9: 0 | D9: =Start!$C$3 -> 0 | E9: 0 | F9: 0 | G9: 0 | H9: 0 | I9: 0
A10: 0 | B10: 6 | C10: 0 | D10: =Start!$C$3 -> 0 | E10: 0 | F10: 0 | G10: 0 | H10: 0 | I10: 0
A11: 0 | B11: 6 | C11: 0 | D11: =Start!$C$3 -> 0 | E11: 0 | F11: 0 | G11: 0 | H11: 0 | I11: 0
A12: 0 | B12: 6 | C12: 0 | D12: =Start!$C$3 -> 0 | E12: 0 | F12: 0 | G12: 0 | H12: 0 | I12: 0
A13: 0 | B13: 6 | C13: 0 | D13: =Start!$C$3 -> 0 | E13: 0 | F13: 0 | G13: 0 | H13: 0 | I13: 0
A14: 0 | B14: 6 | C14: 0 | D14: =Start!$C$3 -> 0 | E14: 0 | F14: 0 | G14: 0 | H14: 0 | I14: 0

Sheet Vielkant (-)
A1: Gesamtmasse = | C1: =IF(Start!AB2="nein","Demo ENDE",SUM(I6:I37)) -> 0
A2: Massetabelle Vielkant (-) | D2: EM= Eckenmaß in mm, nur gültig bei geraden Ecken
A3: SW=Schlüsselweite in mm | D3: Ez=Eckenanzahl | F3: L=Länge | G3: S=Seitenfläche in mm
A4: A= Flächeninhalt in mm hoch 2 | D4: V= Volumen in dm hoch 3 | G4: m=Masse in kg
A5: SW | B5: Ez | C5: L | D5: Dichte | E5: EM | F5: S | G5: A | H5: V | I5: m in kg
A6: 0 | B6: 6 | C6: 0 | D6: =Start!$C$3 -> 0 | E6: =(SQRT(((0.5*A6)*(0.5*A6))+((0.5*F6)*(0.5*F6))))*2 -> 0 | F6: =TAN(((360/B6/2)*PI()/180))*A6 -> 0 | G6: =0.5*F6*0.5*A6*B6 -> 0 | H6: =(G6*C6)/1000000 -> 0 | I6: =(H6*D6)-(2*(H6*D6)) -> 0
A7: 0 | B7: 6 | C7: 0 | D7: =Start!$C$3 -> 0 | E7: 0 | F7: 0 | G7: 0 | H7: 0 | I7: 0
A8: 0 | B8: 6 | C8: 0 | D8: =Start!$C$3 -> 0 | E8: 0 | F8: 0 | G8: 0 | H8: 0 | I8: 0
A9: 0 | B9: 6 | C9: 0 | D9: =Start!$C$3 -> 0 | E9: 0 | F9: 0 | G9: 0 | H9: 0 | I9: 0
A10: 0 | B10: 6 | C10: 0 | D10: =Start!$C$3 -> 0 | E10: 0 | F10: 0 | G10: 0 | H10: 0 | I10: 0
A11: 0 | B11: 6 | C11: 0 | D11: =Start!$C$3 -> 0 | E11: 0 | F11: 0 | G11: 0 | H11: 0 | I11: 0
A12: 0 | B12: 6 | C12: 0 | D12: =Start!$C$3 -> 0 | E12: 0 | F12: 0 | G12: 0 | H12: 0 | I12: 0
A13: 0 | B13: 6 | C13: 0 | D13: =Start!$C$3 -> 0 | E13: 0 | F13: 0 | G13: 0 | H13: 0 | I13: 0
A14: 0 | B14: 6 | C14: 0 | D14: =Start!$C$3 -> 0 | E14: 0 | F14: 0 | G14: 0 | H14: 0 | I14: 0

Sheet Kugel
A1: Gesamtmasse = | C1: =IF(Start!AB2="nein","Demo ENDE",SUM(D5:D36)) -> 0
A2: Massetabelle Kugel (+): Durchmesser (d) in mm +Teilungsfaktor (TF) eingeben!
A3: Heutiges Datum: | C3: =TODAY() -> 2021-04-02
A4: d | B4: TF | C4: Dichte | D4: Kugel (kg)
A5: 0 | B5: 1 | C5: =Start!$C$3 -> 0 | D5: =((A5*A5*A5*0.523598775*C5)/1000000)/B5 -> 0
A6: 0 | B6: 1 | C6: =Start!$C$3 -> 0 | D6: =((A6*A6*A6*0.523598775*C6)/1000000)/B6 -> 0
A7: 0 | B7: 1 | C7: =Start!$C$3 -> 0 | D7: 0
A8: 0 | B8: 1 | C8: =Start!$C$3 -> 0 | D8: 0
A9: 0 | B9: 1 | C9: =Start!$C$3 -> 0 | D9: 0
A10: 0 | B10: 1 | C10: =Start!$C$3 -> 0 | D10: 0
A11: 0 | B11: 1 | C11: =Start!$C$3 -> 0 | D11: 0
A12: 0 | B12: 1 | C12: =Start!$C$3 -> 0 | D12: 0
A13: 0 | B13: 1 | C13: =Start!$C$3 -> 0 | D13: 0
A14: 0 | B14: 1 | C14: =Start!$C$3 -> 0 | D14: 0
A15: 0 | B15: 1 | C15: =Start!$C$3 -> 0 | D15: 0
A16: 0 | B16: 1 | C16: =Start!$C$3 -> 0 | D16: 0
A17: 0 | B17: 1 | C17: =Start!$C$3 -> 0 | D17: 0
A18: 0 | B18: 1 | C18: =Start!$C$3 -> 0 | D18: 0
A19: 0 | B19: 1 | C19: =Start!$C$3 -> 0 | D19: 0
A20: 0 | B20: 1 | C20: =Start!$C$3 -> 0 | D20: 0
A21: 0 | B21: 1 | C21: =Start!$C$3 -> 0 | D21: 0
A22: 0 | B22: 1 | C22: =Start!$C$3 -> 0 | D22: 0
A23: 0 | B23: 1 | C23: =Start!$C$3 -> 0 | D23: 0
A24: 0 | B24: 1 | C24: =Start!$C$3 -> 0 | D24: 0
A25: 0 | B25: 1 | C25: =Start!$C$3 -> 0 | D25: 0
A26: 0 | B26: 1 | C26: =Start!$C$3 -> 0 | D26: 0
A27: 0 | B27: 1 | C27: =Start!$C$3 -> 0 | D27: 0
A28: 0 | B28: 1 | C28: =Start!$C$3 -> 0 | D28: 0
A29: 0 | B29: 1 | C29: =Start!$C$3 -> 0 | D29: 0
A30: 0 | B30: 1 | C30: =Start!$C$3 -> 0 | D30: 0
A31: 0 | B31: 1 | C31: =Start!$C$3 -> 0 | D31: 0
A32: 0 | B32: 1 | C32: =Start!$C$3 -> 0 | D32: 0
A33: 0 | B33: 1 | C33: =Start!$C$3 -> 0 | D33: 0
A34: 0 | B34: 1 | C34: =Start!$C$3 -> 0 | D34: 0
A35: 0 | B35: 1 | C35: =Start!$C$3 -> 0 | D35: 0
A36: 0 | B36: 1 | C36: =Start!$C$3 -> 0 | D36: 0

Sheet Kugel (-)
A1: Gesamtmasse = | C1: =IF(Start!AB2="nein","Demo ENDE",SUM(D5:D36)) -> 0
A2: Massetabelle Kugel (-): Durchmesser (d) in mm +Teilungsfaktor (TF) eingeben!
A3: Heutiges Datum: | C3: =TODAY() -> 2021-04-02 | D3: Dm
A4: d | B4: TF | C4: Dichte | D4: Kugel (kg)
A5: 0 | B5: 1 | C5: =Start!$C$3 -> 0 | D5: =(((A5*A5*A5*0.523598775*C5)/1000000)-(2*((A5*A5*A5*0.523598775*C5)/1000000)))/B5 -> 0
A6: 0 | B6: 1 | C6: =Start!$C$3 -> 0 | D6: =(((A6*A6*A6*0.523598775*C6)/1000000)-(2*((A6*A6*A6*0.523598775*C6)/1000000)))/B6 -> 0
A7: 0 | B7: 1 | C7: =Start!$C$3 -> 0 | D7: 0
A8: 0 | B8: 1 | C8: =Start!$C$3 -> 0 | D8: 0
A9: 0 | B9: 1 | C9: =Start!$C$3 -> 0 | D9: 0
A10: 0 | B10: 1 | C10: =Start!$C$3 -> 0 | D10: 0
A11: 0 | B11: 1 | C11: =Start!$C$3 -> 0 | D11: 0
A12: 0 | B12: 1 | C12: =Start!$C$3 -> 0 | D12: 0
A13: 0 | B13: 1 | C13: =Start!$C$3 -> 0 | D13: 0
A14: 0 | B14: 1 | C14: =Start!$C$3 -> 0 | D14: 0
A15: 0 | B15: 1 | C15: =Start!$C$3 -> 0 | D15: 0
A16: 0 | B16: 1 | C16: =Start!$C$3 -> 0 | D16: 0
A17: 0 | B17: 1 | C17: =Start!$C$3 -> 0 | D17: 0
A18: 0 | B18: 1 | C18: =Start!$C$3 -> 0 | D18: 0
A19: 0 | B19: 1 | C19: =Start!$C$3 -> 0 | D19: 0
A20: 0 | B20: 1 | C20: =Start!$C$3 -> 0 | D20: 0
A21: 0 | B21: 1 | C21: =Start!$C$3 -> 0 | D21: 0
A22: 0 | B22: 1 | C22: =Start!$C$3 -> 0 | D22: 0
A23: 0 | B23: 1 | C23: =Start!$C$3 -> 0 | D23: 0
A24: 0 | B24: 1 | C24: =Start!$C$3 -> 0 | D24: 0
A25: 0 | B25: 1 | C25: =Start!$C$3 -> 0 | D25: 0
A26: 0 | B26: 1 | C26: =Start!$C$3 -> 0 | D26: 0
A27: 0 | B27: 1 | C27: =Start!$C$3 -> 0 | D27: 0
A28: 0 | B28: 1 | C28: =Start!$C$3 -> 0 | D28: 0
A29: 0 | B29: 1 | C29: =Start!$C$3 -> 0 | D29: 0
A30: 0 | B30: 1 | C30: =Start!$C$3 -> 0 | D30: 0
A31: 0 | B31: 1 | C31: =Start!$C$3 -> 0 | D31: 0
A32: 0 | B32: 1 | C32: =Start!$C$3 -> 0 | D32: 0
A33: 0 | B33: 1 | C33: =Start!$C$3 -> 0 | D33: 0
A34: 0 | B34: 1 | C34: =Start!$C$3 -> 0 | D34: 0
A35: 0 | B35: 1 | C35: =Start!$C$3 -> 0 | D35: 0
A36: 0 | B36: 1 | C36: =Start!$C$3 -> 0 | D36: 0

Sheet Rohr
A1: Gesamtmasse = | C1: =IF(Start!AB2="nein","Demo ENDE",SUM(E5:E36)) -> 0
A2: Massetabelle Rohr (+): Durchmesser (Dm), Länge (L), Rohrwandung (RW)
A3: Heutiges Datum: | B3: =TODAY() -> 2021-04-02
A4: Dm | B4: L | C4: RW | D4: Dichte | E4: Rohr (kg)
A5: 90.8 | C5: 9.8 | D5: =Start!$C$3 -> 0 | E5: =((A5*A5*0.7853898163*B5*D5)/1000000)-(((A5-C5-C5)*(A5-C5-C5)*0.7853898163*B5*D5)/1000000) -> 0
A6: 104.8 | C6: 14.3 | D6: =Start!$C$3 -> 0 | E6: 0
A7: 120.3 | C7: 22.7 | D7: =Start!$C$3 -> 0 | E7: 0
A8: 133.1 | C8: 19.3 | D8: =Start!$C$3 -> 0 | E8: 0
A9: 142.7 | C9: 76.5 | D9: =Start!$C$3 -> 0 | E9: 0
A10: 163.63 | C10: 36.57 | D10: =Start!$C$3 -> 0 | E10: 0
A11: 0 | C11: 0 | D11: =Start!$C$3 -> 0 | E11: 0
A12: 0 | C12: 0 | D12: =Start!$C$3 -> 0 | E12: 0
A13: 0 | C13: 0 | D13: =Start!$C$3 -> 0 | E13: 0
A14: 0 | C14: 0 | D14: =Start!$C$3 -> 0 | E14: 0
A15: 0 | C15: 0 | D15: =Start!$C$3 -> 0 | E15: 0
A16: 0 | C16: 0 | D16: =Start!$C$3 -> 0 | E16: 0
A17: 0 | C17: 0 | D17: =Start!$C$3 -> 0 | E17: 0
A18: 0 | C18: 0 | D18: =Start!$C$3 -> 0 | E18: 0
A19: 0 | C19: 0 | D19: =Start!$C$3 -> 0 | E19: 0
A20: 0 | C20: 0 | D20: =Start!$C$3 -> 0 | E20: 0
A21: 0 | C21: 0 | D21: =Start!$C$3 -> 0 | E21: 0
A22: 0 | C22: 0 | D22: =Start!$C$3 -> 0 | E22: 0
A23: 0 | C23: 0 | D23: =Start!$C$3 -> 0 | E23: 0
A24: 0 | C24: 0 | D24: =Start!$C$3 -> 0 | E24: 0
A25: 0 | C25: 0 | D25: =Start!$C$3 -> 0 | E25: 0
A26: 0 | C26: 0 | D26: =Start!$C$3 -> 0 | E26: 0
A27: 0 | C27: 0 | D27: =Start!$C$3 -> 0 | E27: 0
A28: 0 | C28: 0 | D28: =Start!$C$3 -> 0 | E28: 0
A29: 0 | C29: 0 | D29: =Start!$C$3 -> 0 | E29: 0
A30: 0 | C30: 0 | D30: =Start!$C$3 -> 0 | E30: 0
A31: 0 | C31: 0 | D31: =Start!$C$3 -> 0 | E31: 0
A32: 0 | C32: 0 | D32: =Start!$C$3 -> 0 | E32: 0
A33: 0 | C33: 0 | D33: =Start!$C$3 -> 0 | E33: 0
A34: 0 | C34: 0 | D34: =Start!$C$3 -> 0 | E34: 0
A35: 0 | C35: 0 | D35: =Start!$C$3 -> 0 | E35: 0
A36: 0 | C36: 0 | D36: =Start!$C$3 -> 0 | E36: 0

Sheet Rohr (-)
A1: Gesamtmasse = | C1: =IF(Start!AB2="nein","Demo ENDE",SUM(E5:E36)) -> 0
A2: Massetabelle Rohr (-): Durchmesser (Dm), Länge (L), Rohrwandung (RW)
A3: Heutiges Datum: | B3: =TODAY() -> 2021-04-02
A4: Dm | B4: L | C4: RW | D4: Dichte | E4: Rohr (kg)
A5: 90.8 | C5: 9.8 | D5: =Start!$C$3 -> 0 | E5: =(((A5*A5*0.7853898163*B5*D5)/1000000)-(((A5-C5-C5)*(A5-C5-C5)*0.7853898163*B5*D5)/1000000))-(2*(((A5*A5*0.7853898163*B5*D5)/1000000)-(((A5-C5-C5)*(A5-C5-C5)*0.7853898163*B5*D5)/1000000))) -> 0
A6: 104.8 | C6: 14.3 | D6: =Start!$C$3 -> 0 | E6: =(((A6*A6*0.7853898163*B6*D6)/1000000)-(((A6-C6-C6)*(A6-C6-C6)*0.7853898163*B6*D6)/1000000))-(2*(((A6*A6*0.7853898163*B6*D6)/1000000)-(((A6-C6-C6)*(A6-C6-C6)*0.7853898163*B6*D6)/1000000))) -> 0
A7: 120.3 | C7: 22.7 | D7: =Start!$C$3 -> 0 | E7: 0
A8: 133.1 | C8: 19.3 | D8: =Start!$C$3 -> 0 | E8: 0
A9: 142.7 | C9: 76.5 | D9: =Start!$C$3 -> 0 | E9: 0
A10: 163.63 | C10: 36.57 | D10: =Start!$C$3 -> 0 | E10: 0
D11: =Start!$C$3 -> 0 | E11: 0
D12: =Start!$C$3 -> 0 | E12: 0
D13: =Start!$C$3 -> 0 | E13: 0
D14: =Start!$C$3 -> 0 | E14: 0
D15: =Start!$C$3 -> 0 | E15: 0
D16: =Start!$C$3 -> 0 | E16: 0
D17: =Start!$C$3 -> 0 | E17: 0
D18: =Start!$C$3 -> 0 | E18: 0
D19: =Start!$C$3 -> 0 | E19: 0
D20: =Start!$C$3 -> 0 | E20: 0
D21: =Start!$C$3 -> 0 | E21: 0
D22: =Start!$C$3 -> 0 | E22: 0
D23: =Start!$C$3 -> 0 | E23: 0
D24: =Start!$C$3 -> 0 | E24: 0
D25: =Start!$C$3 -> 0 | E25: 0
D26: =Start!$C$3 -> 0 | E26: 0
D27: =Start!$C$3 -> 0 | E27: 0
D28: =Start!$C$3 -> 0 | E28: 0
D29: =Start!$C$3 -> 0 | E29: 0
D30: =Start!$C$3 -> 0 | E30: 0
D31: =Start!$C$3 -> 0 | E31: 0
D32: =Start!$C$3 -> 0 | E32: 0
D33: =Start!$C$3 -> 0 | E33: 0
D34: =Start!$C$3 -> 0 | E34: 0
D35: =Start!$C$3 -> 0 | E35: 0
D36: =Start!$C$3 -> 0 | E36: 0

Sheet Kugelabschnitt +
A1: Gesamtmasse= | C1: =IF(Start!AB2="nein","Demo ENDE",SUM(D5:D36)) -> 0
A2: Massetabelle Kugelabschnitt (+): Durchmesser (d1), Höhe (h), in mm eingeben!
A3: Heutiges Datum: | B3: =TODAY() -> 2021-04-02
A4: d1 | B4: h | C4: Dichte | D4: Masse in kg
A5: 0 | B5: 0 | C5: =Start!$C$3 -> 0 | D5: =(((PI()*B5)/6)*(3*((A5/2)*(A5/2))+(B5*B5))*C5)/1000000 -> 0
A6: 0 | B6: 0 | C6: =Start!$C$3 -> 0 | D6: =(((PI()*B6)/6)*(3*((A6/2)*(A6/2))+(B6*B6))*C6)/1000000 -> 0
A7: 0 | B7: 0 | C7: =Start!$C$3 -> 0 | D7: 0 | G7: Kreisabschnitt
A8: 0 | B8: 0 | C8: =Start!$C$3 -> 0 | D8: 0 | G8: Eingabe (r + Winkel) | J8: Eingabe (b+Winkel) | M8: Eingabe (h + s) | P8: Eingabe (r + b)
A9: 0 | B9: 0 | C9: =Start!$C$3 -> 0 | D9: 0 | G9: r | H9: a | J9: b | K9: a | M9: h | N9: s | P9: r | Q9: b
A10: 0 | B10: 0 | C10: =Start!$C$3 -> 0 | D10: 0 | G10: 60 | H10: 60 | J10: 62.83185 | K10: 60 | M10: 8.038476 | N10: 60 | P10: 60 | Q10: 62.83185
A11: 0 | B11: 0 | C11: =Start!$C$3 -> 0 | D11: 0 | G11: b = | H11: s = | J11: h = | K11: s = | M11: r = | N11: b = | P11: h = | Q11: s =
A12: 0 | B12: 0 | C12: =Start!$C$3 -> 0 | D12: 0 | G12: =PI()*G10*H10/180 -> 62.83185307 | H12: =2*G10*SIN((H10*PI()/180)/2) -> 60 | J12: =J14*(1-(COS((K10/2)*PI()/180))) -> 8.03847608 | K12: =2*J14*SIN((K10*PI()/180)/2) -> 60.00000229 | M12: =(M10/2)+((N10*N10)/(8*M10)) -> 59.99999853 | N12: =PI()*M12*M14/180 -> 62.83185323 | P12: =P10*(1-(COS((P14/2)*PI()/180))) -> 8.038475005 | Q12: =2*P10*SIN((P14*PI()/180)/2) -> 59.99999734
A13: 0 | B13: 0 | C13: =Start!$C$3 -> 0 | D13: 0 | G13: h = | H13: F = | J13: r = | K13: F = | M13: a= | N13: F = | P13: a= | Q13: F =
A14: 0 | B14: 0 | C14: =Start!$C$3 -> 0 | D14: 0 | G14: =G10*(1-(COS((H10/2)*PI()/180))) -> 8.038475773 | H14: =(G12*G10)/2 -> 1884.955592 | J14: =J10/(0.017453291*K10) -> 60.00000229 | K14: =(J10*J14)/2 -> 1884.955572 | M14: =(ASIN(N10/(2*M12))*180/PI())*2 -> 60.00000162 | N14: =N12*M12/2 -> 1884.955551 | P14: =(Q10*180)/(PI()*P10) -> 59.99999707 | Q14: =(Q10*P10)/2 -> 1884.9555
A15: 0 | B15: 0 | C15: =Start!$C$3 -> 0 | D15: 0 | G15: Eingabe (r + s) | P15: Eingabe (Winkel+s)
A16: 0 | B16: 0 | C16: =Start!$C$3 -> 0 | D16: 0 | G16: r | H16: s | P16: a | Q16: s
A17: 0 | B17: 0 | C17: =Start!$C$3 -> 0 | D17: 0 | G17: 60 | H17: 60 | P17: 60 | Q17: 60
A18: 0 | B18: 0 | C18: =Start!$C$3 -> 0 | D18: 0 | G18: b = | H18: a= | P18: r = | Q18: b =
A19: 0 | B19: 0 | C19: =Start!$C$3 -> 0 | D19: 0 | G19: =PI()*G17*H19/180 -> 62.83185307 | H19: =(ASIN(H17/(2*G17))*180/PI())*2 -> 60 | P19: =Q17/(2*(SIN((P17/2)*PI()/180))) -> 60 | Q19: =PI()*P19*P17/180 -> 62.83185307
A20: 0 | B20: 0 | C20: =Start!$C$3 -> 0 | D20: 0 | G20: h = | H20: F = | P20: h = | Q20: F =
A21: 0 | B21: 0 | C21: =Start!$C$3 -> 0 | D21: 0 | G21: =G17*(1-(COS((H19/2)*PI()/180))) -> 8.038475773 | H21: =(G19*G17)/2 -> 1884.955592 | P21: =P19*(1-(COS((P17/2)*PI()/180))) -> 8.038475773 | Q21: =Q19*P19/2 -> 1884.955592
A22: 0 | B22: 0 | C22: =Start!$C$3 -> 0 | D22: 0 | G22: Eingabe (r+h)
A23: 0 | B23: 0 | C23: =Start!$C$3 -> 0 | D23: 0 | G23: r | H23: h
A24: 0 | B24: 0 | C24: =Start!$C$3 -> 0 | D24: 0 | G24: 50 | H24: 10
A25: 0 | B25: 0 | C25: =Start!$C$3 -> 0 | D25: 0 | G25: a= | H25: s =
A26: 0 | B26: 0 | C26: =Start!$C$3 -> 0 | D26: 0 | G26: =(ASIN(H26/(2*G24))*180/PI())*2 -> 73.73979529 | H26: =SQRT((G24-(H24/2))*8*H24) -> 60
A27: 0 | B27: 0 | C27: =Start!$C$3 -> 0 | D27: 0 | G27: b = | H27: F =
A28: 0 | B28: 0 | C28: =Start!$C$3 -> 0 | D28: 0 | G28: =PI()*G24*G26/180 -> 64.35011088 | H28: =(G24*G28)/2 -> 1608.752772
A29: 0 | B29: 0 | C29: =Start!$C$3 -> 0 | D29: 0 | G29: F1 = | H29: F2 =
A30: 0 | B30: 0 | C30: =Start!$C$3 -> 0 | D30: 0 | G30: =(G24-H24)*(H26/2) -> 1200 | H30: =H28-G30 -> 408.752772
A31: 0 | B31: 0 | C31: =Start!$C$3 -> 0 | D31: 0
A32: 0 | B32: 0 | C32: =Start!$C$3 -> 0 | D32: 0
A33: 0 | B33: 0 | C33: =Start!$C$3 -> 0 | D33: 0
A34: 0 | B34: 0 | C34: =Start!$C$3 -> 0 | D34: 0
A35: 0 | B35: 0 | C35: =Start!$C$3 -> 0 | D35: 0
A36: 0 | B36: 0 | C36: =Start!$C$3 -> 0 | D36: 0

Sheet Kugelabschnitt -
A1: Gesamtmasse= | C1: =IF(Start!AB2="nein","Demo ENDE",SUM(D5:D36)) -> 0
A2: Massetabelle Kugelabschnitt (-): Durchmesser (d1), Höhe (h), in mm eingeben!
A3: Heutiges Datum: | B3: =TODAY() -> 2021-04-02
A4: d1 | B4: h | C4: Dichte | D4: Masse in kg
A5: 0 | B5: 0 | C5: =Start!$C$3 -> 0 | D5: =((((PI()*B5)/6)*(3*((A5/2)*(A5/2))+(B5*B5))*C5)/1000000)-(2*((((PI()*B5)/6)*(3*((A5/2)*(A5/2))+(B5*B5))*C5)/1000000)) -> 0
A6: 0 | B6: 0 | C6: =Start!$C$3 -> 0 | D6: =((((PI()*B6)/6)*(3*((A6/2)*(A6/2))+(B6*B6))*C6)/1000000)-(2*((((PI()*B6)/6)*(3*((A6/2)*(A6/2))+(B6*B6))*C6)/1000000)) -> 0
A7: 0 | B7: 0 | C7: =Start!$C$3 -> 0 | D7: 0 | G7: Kreisabschnitt
A8: 0 | B8: 0 | C8: =Start!$C$3 -> 0 | D8: 0 | G8: Eingabe (r + Winkel) | J8: Eingabe (b+Winkel) | M8: Eingabe (h + s) | P8: Eingabe (r + b)
A9: 0 | B9: 0 | C9: =Start!$C$3 -> 0 | D9: 0 | G9: r | H9: a | J9: b | K9: a | M9: h | N9: s | P9: r | Q9: b
A10: 0 | B10: 0 | C10: =Start!$C$3 -> 0 | D10: 0 | G10: 60 | H10: 60 | J10: 62.83185 | K10: 60 | M10: 8.038476 | N10: 60 | P10: 60 | Q10: 62.83185
A11: 0 | B11: 0 | C11: =Start!$C$3 -> 0 | D11: 0 | G11: b = | H11: s = | J11: h = | K11: s = | M11: r = | N11: b = | P11: h = | Q11: s =
A12: 0 | B12: 0 | C12: =Start!$C$3 -> 0 | D12: 0 | G12: =PI()*G10*H10/180 -> 62.83185307 | H12: =2*G10*SIN((H10*PI()/180)/2) -> 60 | J12: =J14*(1-(COS((K10/2)*PI()/180))) -> 8.03847608 | K12: =2*J14*SIN((K10*PI()/180)/2) -> 60.00000229 | M12: =(M10/2)+((N10*N10)/(8*M10)) -> 59.99999853 | N12: =PI()*M12*M14/180 -> 62.83185323 | P12: =P10*(1-(COS((P14/2)*PI()/180))) -> 8.038475005 | Q12: =2*P10*SIN((P14*PI()/180)/2) -> 59.99999734
A13: 0 | B13: 0 | C13: =Start!$C$3 -> 0 | D13: 0 | G13: h = | H13: F = | J13: r = | K13: F = | M13: a= | N13: F = | P13: a= | Q13: F =
A14: 0 | B14: 0 | C14: =Start!$C$3 -> 0 | D14: 0 | G14: =G10*(1-(COS((H10/2)*PI()/180))) -> 8.038475773 | H14: =(G12*G10)/2 -> 1884.955592 | J14: =J10/(0.017453291*K10) -> 60.00000229 | K14: =(J10*J14)/2 -> 1884.955572 | M14: =(ASIN(N10/(2*M12))*180/PI())*2 -> 60.00000162 | N14: =N12*M12/2 -> 1884.955551 | P14: =(Q10*180)/(PI()*P10) -> 59.99999707 | Q14: =(Q10*P10)/2 -> 1884.9555
A15: 0 | B15: 0 | C15: =Start!$C$3 -> 0 | D15: 0 | G15: Eingabe (r + s) | P15: Eingabe (Winkel+s)
A16: 0 | B16: 0 | C16: =Start!$C$3 -> 0 | D16: 0 | G16: r | H16: s | P16: a | Q16: s
A17: 0 | B17: 0 | C17: =Start!$C$3 -> 0 | D17: 0 | G17: 60 | H17: 60 | P17: 60 | Q17: 60
A18: 0 | B18: 0 | C18: =Start!$C$3 -> 0 | D18: 0 | G18: b = | H18: a= | P18: r = | Q18: b =
A19: 0 | B19: 0 | C19: =Start!$C$3 -> 0 | D19: 0 | G19: =PI()*G17*H19/180 -> 62.83185307 | H19: =(ASIN(H17/(2*G17))*180/PI())*2 -> 60 | P19: =Q17/(2*(SIN((P17/2)*PI()/180))) -> 60 | Q19: =PI()*P19*P17/180 -> 62.83185307
A20: 0 | B20: 0 | C20: =Start!$C$3 -> 0 | D20: 0 | G20: h = | H20: F = | P20: h = | Q20: F =
A21: 0 | B21: 0 | C21: =Start!$C$3 -> 0 | D21: 0 | G21: =G17*(1-(COS((H19/2)*PI()/180))) -> 8.038475773 | H21: =(G19*G17)/2 -> 1884.955592 | P21: =P19*(1-(COS((P17/2)*PI()/180))) -> 8.038475773 | Q21: =Q19*P19/2 -> 1884.955592
A22: 0 | B22: 0 | C22: =Start!$C$3 -> 0 | D22: 0 | G22: Eingabe (r+h)
A23: 0 | B23: 0 | C23: =Start!$C$3 -> 0 | D23: 0 | G23: r | H23: h
A24: 0 | B24: 0 | C24: =Start!$C$3 -> 0 | D24: 0 | G24: 50 | H24: 10
A25: 0 | B25: 0 | C25: =Start!$C$3 -> 0 | D25: 0 | G25: a= | H25: s =
A26: 0 | B26: 0 | C26: =Start!$C$3 -> 0 | D26: 0 | G26: =(ASIN(H26/(2*G24))*180/PI())*2 -> 73.73979529 | H26: =SQRT((G24-(H24/2))*8*H24) -> 60
A27: 0 | B27: 0 | C27: =Start!$C$3 -> 0 | D27: 0 | G27: b = | H27: F =
A28: 0 | B28: 0 | C28: =Start!$C$3 -> 0 | D28: 0 | G28: =PI()*G24*G26/180 -> 64.35011088 | H28: =(G24*G28)/2 -> 1608.752772
A29: 0 | B29: 0 | C29: =Start!$C$3 -> 0 | D29: 0 | G29: F1 = | H29: F2 =
A30: 0 | B30: 0 | C30: =Start!$C$3 -> 0 | D30: 0 | G30: =(G24-H24)*(H26/2) -> 1200 | H30: =H28-G30 -> 408.752772
A31: 0 | B31: 0 | C31: =Start!$C$3 -> 0 | D31: 0
A32: 0 | B32: 0 | C32: =Start!$C$3 -> 0 | D32: 0
A33: 0 | B33: 0 | C33: =Start!$C$3 -> 0 | D33: 0
A34: 0 | B34: 0 | C34: =Start!$C$3 -> 0 | D34: 0
A35: 0 | B35: 0 | C35: =Start!$C$3 -> 0 | D35: 0
A36: 0 | B36: 0 | C36: =Start!$C$3 -> 0 | D36: 0

Sheet Pyramidenstumpf(+)
A1: Gesamtmasse = | E1: =IF(Start!AB2="nein","Demo ENDE",SUM(G5:G36)) -> 0
A2: Massetabelle Pyramiedenstumpf (+): große Quadratseitenlänge (l1), Höhe (h) und
A3: kleine Quadratseitenlänge bei Pyramidenstumpf (l2) in mm eingeben!
A4: l1(l) | B4: b1(b) | C4: l2 | D4: b2 | E4: h | F4: Dichte | G4: Masse in kg
A5: 0 | B5: 0 | C5: 0 | D5: 0 | E5: 0 | F5: =Start!$C$3 -> 0 | G5: =((((A5*B5)+(C5*D5)+SQRT((A5*B5)*(C5*D5)))*(E5/3))*F5/1000000) -> 0
A6: 0 | B6: 0 | C6: 0 | D6: 0 | E6: 0 | F6: =Start!$C$3 -> 0 | G6: =((((A6*B6)+(C6*D6)+SQRT((A6*B6)*(C6*D6)))*(E6/3))*F6/1000000) -> 0
A7: 0 | B7: 0 | C7: 0 | D7: 0 | E7: 0 | F7: =Start!$C$3 -> 0 | G7: 0
A8: 0 | B8: 0 | C8: 0 | D8: 0 | E8: 0 | F8: =Start!$C$3 -> 0 | G8: 0
A9: 0 | B9: 0 | C9: 0 | D9: 0 | E9: 0 | F9: =Start!$C$3 -> 0 | G9: 0
A10: 0 | B10: 0 | C10: 0 | D10: 0 | E10: 0 | F10: =Start!$C$3 -> 0 | G10: 0
A11: 0 | B11: 0 | C11: 0 | D11: 0 | E11: 0 | F11: =Start!$C$3 -> 0 | G11: 0
A12: 0 | B12: 0 | C12: 0 | D12: 0 | E12: 0 | F12: =Start!$C$3 -> 0 | G12: 0
A13: 0 | B13: 0 | C13: 0 | D13: 0 | E13: 0 | F13: =Start!$C$3 -> 0 | G13: 0
A14: 0 | B14: 0 | C14: 0 | D14: 0 | E14: 0 | F14: =Start!$C$3 -> 0 | G14: 0
A15: 0 | B15: 0 | C15: 0 | D15: 0 | E15: 0 | F15: =Start!$C$3 -> 0 | G15: 0
A16: 0 | B16: 0 | C16: 0 | D16: 0 | E16: 0 | F16: =Start!$C$3 -> 0 | G16: 0
A17: 0 | B17: 0 | C17: 0 | D17: 0 | E17: 0 | F17: =Start!$C$3 -> 0 | G17: 0
A18: 0 | B18: 0 | C18: 0 | D18: 0 | E18: 0 | F18: =Start!$C$3 -> 0 | G18: 0
A19: 0 | B19: 0 | C19: 0 | D19: 0 | E19: 0 | F19: =Start!$C$3 -> 0 | G19: 0
A20: 0 | B20: 0 | C20: 0 | D20: 0 | E20: 0 | F20: =Start!$C$3 -> 0 | G20: 0
A21: 0 | B21: 0 | C21: 0 | D21: 0 | E21: 0 | F21: =Start!$C$3 -> 0 | G21: 0
A22: 0 | B22: 0 | C22: 0 | D22: 0 | E22: 0 | F22: =Start!$C$3 -> 0 | G22: 0
A23: 0 | B23: 0 | C23: 0 | D23: 0 | E23: 0 | F23: =Start!$C$3 -> 0 | G23: 0
A24: 0 | B24: 0 | C24: 0 | D24: 0 | E24: 0 | F24: =Start!$C$3 -> 0 | G24: 0
A25: 0 | B25: 0 | C25: 0 | D25: 0 | E25: 0 | F25: =Start!$C$3 -> 0 | G25: 0
A26: 0 | B26: 0 | C26: 0 | D26: 0 | E26: 0 | F26: =Start!$C$3 -> 0 | G26: 0
A27: 0 | B27: 0 | C27: 0 | D27: 0 | E27: 0 | F27: =Start!$C$3 -> 0 | G27: 0
A28: 0 | B28: 0 | C28: 0 | D28: 0 | E28: 0 | F28: =Start!$C$3 -> 0 | G28: 0
A29: 0 | B29: 0 | C29: 0 | D29: 0 | E29: 0 | F29: =Start!$C$3 -> 0 | G29: 0
A30: 0 | B30: 0 | C30: 0 | D30: 0 | E30: 0 | F30: =Start!$C$3 -> 0 | G30: 0
A31: 0 | B31: 0 | C31: 0 | D31: 0 | E31: 0 | F31: =Start!$C$3 -> 0 | G31: 0
A32: 0 | B32: 0 | C32: 0 | D32: 0 | E32: 0 | F32: =Start!$C$3 -> 0 | G32: 0
A33: 0 | B33: 0 | C33: 0 | D33: 0 | E33: 0 | F33: =Start!$C$3 -> 0 | G33: 0
A34: 0 | B34: 0 | C34: 0 | D34: 0 | E34: 0 | F34: =Start!$C$3 -> 0 | G34: 0
A35: 0 | B35: 0 | C35: 0 | D35: 0 | E35: 0 | F35: =Start!$C$3 -> 0 | G35: 0
A36: 0 | B36: 0 | C36: 0 | D36: 0 | E36: 0 | F36: =Start!$C$3 -> 0 | G36: 0

Sheet Pyramidenstumpf(-)
A1: Gesamtmasse = | E1: =IF(Start!AB2="nein","Demo ENDE",SUM(G5:G36)) -> 0
A2: Massetabelle Pyramiedenstumpf (-): große Quadratseitenlänge (l1), Höhe (h) und
A3: kleine Quadratseitenlänge bei Pyramidenstumpf (l2) in mm eingeben!
A4: l1(l) | B4: b1(b) | C4: l2 | D4: b2 | E4: h | F4: Dichte | G4: Masse in kg
A5: 0 | B5: 0 | C5: 0 | D5: 0 | E5: 0 | F5: =Start!$C$3 -> 0 | G5: =((((A5*B5)+(C5*D5)+SQRT((A5*B5)*(C5*D5)))*(E5/3))*F5/1000000)-(2*((((A5*B5)+(C5*D5)+SQRT((A5*B5)*(C5*D5)))*(E5/3))*F5/1000000)) -> 0
A6: 0 | B6: 0 | C6: 0 | D6: 0 | E6: 0 | F6: =Start!$C$3 -> 0 | G6: =((((A6*B6)+(C6*D6)+SQRT((A6*B6)*(C6*D6)))*(E6/3))*F6/1000000)-(2*((((A6*B6)+(C6*D6)+SQRT((A6*B6)*(C6*D6)))*(E6/3))*F6/1000000)) -> 0
A7: 0 | B7: 0 | C7: 0 | D7: 0 | E7: 0 | F7: =Start!$C$3 -> 0 | G7: 0
A8: 0 | B8: 0 | C8: 0 | D8: 0 | E8: 0 | F8: =Start!$C$3 -> 0 | G8: 0
A9: 0 | B9: 0 | C9: 0 | D9: 0 | E9: 0 | F9: =Start!$C$3 -> 0 | G9: 0
A10: 0 | B10: 0 | C10: 0 | D10: 0 | E10: 0 | F10: =Start!$C$3 -> 0 | G10: 0
A11: 0 | B11: 0 | C11: 0 | D11: 0 | E11: 0 | F11: =Start!$C$3 -> 0 | G11: 0
A12: 0 | B12: 0 | C12: 0 | D12: 0 | E12: 0 | F12: =Start!$C$3 -> 0 | G12: 0
A13: 0 | B13: 0 | C13: 0 | D13: 0 | E13: 0 | F13: =Start!$C$3 -> 0 | G13: 0
A14: 0 | B14: 0 | C14: 0 | D14: 0 | E14: 0 | F14: =Start!$C$3 -> 0 | G14: 0
A15: 0 | B15: 0 | C15: 0 | D15: 0 | E15: 0 | F15: =Start!$C$3 -> 0 | G15: 0
A16: 0 | B16: 0 | C16: 0 | D16: 0 | E16: 0 | F16: =Start!$C$3 -> 0 | G16: 0
A17: 0 | B17: 0 | C17: 0 | D17: 0 | E17: 0 | F17: =Start!$C$3 -> 0 | G17: 0
A18: 0 | B18: 0 | C18: 0 | D18: 0 | E18: 0 | F18: =Start!$C$3 -> 0 | G18: 0
A19: 0 | B19: 0 | C19: 0 | D19: 0 | E19: 0 | F19: =Start!$C$3 -> 0 | G19: 0
A20: 0 | B20: 0 | C20: 0 | D20: 0 | E20: 0 | F20: =Start!$C$3 -> 0 | G20: 0
A21: 0 | B21: 0 | C21: 0 | D21: 0 | E21: 0 | F21: =Start!$C$3 -> 0 | G21: 0
A22: 0 | B22: 0 | C22: 0 | D22: 0 | E22: 0 | F22: =Start!$C$3 -> 0 | G22: 0
A23: 0 | B23: 0 | C23: 0 | D23: 0 | E23: 0 | F23: =Start!$C$3 -> 0 | G23: 0
A24: 0 | B24: 0 | C24: 0 | D24: 0 | E24: 0 | F24: =Start!$C$3 -> 0 | G24: 0
A25: 0 | B25: 0 | C25: 0 | D25: 0 | E25: 0 | F25: =Start!$C$3 -> 0 | G25: 0
A26: 0 | B26: 0 | C26: 0 | D26: 0 | E26: 0 | F26: =Start!$C$3 -> 0 | G26: 0
A27: 0 | B27: 0 | C27: 0 | D27: 0 | E27: 0 | F27: =Start!$C$3 -> 0 | G27: 0
A28: 0 | B28: 0 | C28: 0 | D28: 0 | E28: 0 | F28: =Start!$C$3 -> 0 | G28: 0
A29: 0 | B29: 0 | C29: 0 | D29: 0 | E29: 0 | F29: =Start!$C$3 -> 0 | G29: 0
A30: 0 | B30: 0 | C30: 0 | D30: 0 | E30: 0 | F30: =Start!$C$3 -> 0 | G30: 0
A31: 0 | B31: 0 | C31: 0 | D31: 0 | E31: 0 | F31: =Start!$C$3 -> 0 | G31: 0
A32: 0 | B32: 0 | C32: 0 | D32: 0 | E32: 0 | F32: =Start!$C$3 -> 0 | G32: 0
A33: 0 | B33: 0 | C33: 0 | D33: 0 | E33: 0 | F33: =Start!$C$3 -> 0 | G33: 0
A34: 0 | B34: 0 | C34: 0 | D34: 0 | E34: 0 | F34: =Start!$C$3 -> 0 | G34: 0
A35: 0 | B35: 0 | C35: 0 | D35: 0 | E35: 0 | F35: =Start!$C$3 -> 0 | G35: 0
A36: 0 | B36: 0 | C36: 0 | D36: 0 | E36: 0 | F36: =Start!$C$3 -> 0 | G36: 0

Sheet Kugelsektor(+)
A1: Gesamtmasse= | B1: =IF(Start!AB2="nein","Demo ENDE",SUM(D5:D36)) -> 0
A2: Massetabelle Kugelsektor (+): Durchmesser (d), Höhe (h),
A3: bei Kugelsektor in mm eingeben!
A4: d | B4: h | C4: Dichte | D4: Masse in kg
A5: 0 | B5: 0 | C5: =Start!$C$3 -> 0 | D5: =(PI()/6)*(A5*A5)*B5*C5/1000000 -> 0
A6: 0 | B6: 0 | C6: =Start!$C$3 -> 0 | D6: =(PI()/6)*(A6*A6)*B6*C6/1000000 -> 0
A7: 0 | B7: 0 | C7: =Start!$C$3 -> 0 | D7: 0 | G7: Kreisabschnitt
A8: 0 | B8: 0 | C8: =Start!$C$3 -> 0 | D8: 0 | G8: Eingabe (r + Winkel) | J8: Eingabe (b+Winkel) | M8: Eingabe (h + s) | P8: Eingabe (r + b)
A9: 0 | B9: 0 | C9: =Start!$C$3 -> 0 | D9: 0 | G9: r | H9: a | J9: b | K9: a | M9: h | N9: s | P9: r | Q9: b
A10: 0 | B10: 0 | C10: =Start!$C$3 -> 0 | D10: 0 | G10: 60 | H10: 60 | J10: 62.83185 | K10: 60 | M10: 8.038476 | N10: 60 | P10: 60 | Q10: 62.83185
A11: 0 | B11: 0 | C11: =Start!$C$3 -> 0 | D11: 0 | G11: b = | H11: s = | J11: h = | K11: s = | M11: r = | N11: b = | P11: h = | Q11: s =
A12: 0 | B12: 0 | C12: =Start!$C$3 -> 0 | D12: 0 | G12: =PI()*G10*H10/180 -> 62.83185307 | H12: =2*G10*SIN((H10*PI()/180)/2) -> 60 | J12: =J14*(1-(COS((K10/2)*PI()/180))) -> 8.03847608 | K12: =2*J14*SIN((K10*PI()/180)/2) -> 60.00000229 | M12: =(M10/2)+((N10*N10)/(8*M10)) -> 59.99999853 | N12: =PI()*M12*M14/180 -> 62.83185323 | P12: =P10*(1-(COS((P14/2)*PI()/180))) -> 8.038475005 | Q12: =2*P10*SIN((P14*PI()/180)/2) -> 59.99999734
A13: 0 | B13: 0 | C13: =Start!$C$3 -> 0 | D13: 0 | G13: h = | H13: F = | J13: r = | K13: F = | M13: a= | N13: F = | P13: a= | Q13: F =
A14: 0 | B14: 0 | C14: =Start!$C$3 -> 0 | D14: 0 | G14: =G10*(1-(COS((H10/2)*PI()/180))) -> 8.038475773 | H14: =(G12*G10)/2 -> 1884.955592 | J14: =J10/(0.017453291*K10) -> 60.00000229 | K14: =(J10*J14)/2 -> 1884.955572 | M14: =(ASIN(N10/(2*M12))*180/PI())*2 -> 60.00000162 | N14: =N12*M12/2 -> 1884.955551 | P14: =(Q10*180)/(PI()*P10) -> 59.99999707 | Q14: =(Q10*P10)/2 -> 1884.9555
A15: 0 | B15: 0 | C15: =Start!$C$3 -> 0 | D15: 0 | G15: Eingabe (r + s) | P15: Eingabe (Winkel+s)
A16: 0 | B16: 0 | C16: =Start!$C$3 -> 0 | D16: 0 | G16: r | H16: s | P16: a | Q16: s
A17: 0 | B17: 0 | C17: =Start!$C$3 -> 0 | D17: 0 | G17: 60 | H17: 60 | P17: 60 | Q17: 60
A18: 0 | B18: 0 | C18: =Start!$C$3 -> 0 | D18: 0 | G18: b = | H18: a= | P18: r = | Q18: b =
A19: 0 | B19: 0 | C19: =Start!$C$3 -> 0 | D19: 0 | G19: =PI()*G17*H19/180 -> 62.83185307 | H19: =(ASIN(H17/(2*G17))*180/PI())*2 -> 60 | P19: =Q17/(2*(SIN((P17/2)*PI()/180))) -> 60 | Q19: =PI()*P19*P17/180 -> 62.83185307
A20: 0 | B20: 0 | C20: =Start!$C$3 -> 0 | D20: 0 | G20: h = | H20: F = | P20: h = | Q20: F =
A21: 0 | B21: 0 | C21: =Start!$C$3 -> 0 | D21: 0 | G21: =G17*(1-(COS((H19/2)*PI()/180))) -> 8.038475773 | H21: =(G19*G17)/2 -> 1884.955592 | P21: =P19*(1-(COS((P17/2)*PI()/180))) -> 8.038475773 | Q21: =Q19*P19/2 -> 1884.955592
A22: 0 | B22: 0 | C22: =Start!$C$3 -> 0 | D22: 0 | G22: Eingabe (r+h)
A23: 0 | B23: 0 | C23: =Start!$C$3 -> 0 | D23: 0 | G23: r | H23: h
A24: 0 | B24: 0 | C24: =Start!$C$3 -> 0 | D24: 0 | G24: 50 | H24: 10
A25: 0 | B25: 0 | C25: =Start!$C$3 -> 0 | D25: 0 | G25: a= | H25: s =
A26: 0 | B26: 0 | C26: =Start!$C$3 -> 0 | D26: 0 | G26: =(ASIN(H26/(2*G24))*180/PI())*2 -> 73.73979529 | H26: =SQRT((G24-(H24/2))*8*H24) -> 60
A27: 0 | B27: 0 | C27: =Start!$C$3 -> 0 | D27: 0 | G27: b = | H27: F =
A28: 0 | B28: 0 | C28: =Start!$C$3 -> 0 | D28: 0 | G28: =PI()*G24*G26/180 -> 64.35011088 | H28: =(G24*G28)/2 -> 1608.752772
A29: 0 | B29: 0 | C29: =Start!$C$3 -> 0 | D29: 0 | G29: F1 = | H29: F2 =
A30: 0 | B30: 0 | C30: =Start!$C$3 -> 0 | D30: 0 | G30: =(G24-H24)*(H26/2) -> 1200 | H30: =H28-G30 -> 408.752772
A31: 0 | B31: 0 | C31: =Start!$C$3 -> 0 | D31: 0
A32: 0 | B32: 0 | C32: =Start!$C$3 -> 0 | D32: 0
A33: 0 | B33: 0 | C33: =Start!$C$3 -> 0 | D33: 0
A34: 0 | B34: 0 | C34: =Start!$C$3 -> 0 | D34: 0
A35: 0 | B35: 0 | C35: =Start!$C$3 -> 0 | D35: 0
A36: 0 | B36: 0 | C36: =Start!$C$3 -> 0 | D36: 0

Sheet Kugelsektor(-)
A1: Gesamtmasse= | B1: =IF(Start!AB2="nein","Demo ENDE",SUM(D5:D36)) -> 0
A2: Massetabelle Kugelsektor (-): Durchmesser (d), Höhe (h),
A3: bei Kugelsektor in mm eingeben!
A4: d | B4: h | C4: Dichte | D4: Masse in kg
A5: 0 | B5: 0 | C5: =Start!$C$3 -> 0 | D5: =((PI()/6)*(A5*A5)*B5*C5/1000000)-(2*((PI()/6)*(A5*A5)*B5*C5/1000000)) -> 0
A6: 0 | B6: 0 | C6: =Start!$C$3 -> 0 | D6: =((PI()/6)*(A6*A6)*B6*C6/1000000)-(2*((PI()/6)*(A6*A6)*B6*C6/1000000)) -> 0
A7: 0 | B7: 0 | C7: =Start!$C$3 -> 0 | D7: 0 | G7: Kreisabschnitt
A8: 0 | B8: 0 | C8: =Start!$C$3 -> 0 | D8: 0 | G8: Eingabe (r + Winkel) | J8: Eingabe (b+Winkel) | M8: Eingabe (h + s) | P8: Eingabe (r + b)
A9: 0 | B9: 0 | C9: =Start!$C$3 -> 0 | D9: 0 | G9: r | H9: a | J9: b | K9: a | M9: h | N9: s | P9: r | Q9: b
A10: 0 | B10: 0 | C10: =Start!$C$3 -> 0 | D10: 0 | G10: 60 | H10: 60 | J10: 62.83185 | K10: 60 | M10: 8.038476 | N10: 60 | P10: 60 | Q10: 62.83185
A11: 0 | B11: 0 | C11: =Start!$C$3 -> 0 | D11: 0 | G11: b = | H11: s = | J11: h = | K11: s = | M11: r = | N11: b = | P11: h = | Q11: s =
A12: 0 | B12: 0 | C12: =Start!$C$3 -> 0 | D12: 0 | G12: =PI()*G10*H10/180 -> 62.83185307 | H12: =2*G10*SIN((H10*PI()/180)/2) -> 60 | J12: =J14*(1-(COS((K10/2)*PI()/180))) -> 8.03847608 | K12: =2*J14*SIN((K10*PI()/180)/2) -> 60.00000229 | M12: =(M10/2)+((N10*N10)/(8*M10)) -> 59.99999853 | N12: =PI()*M12*M14/180 -> 62.83185323 | P12: =P10*(1-(COS((P14/2)*PI()/180))) -> 8.038475005 | Q12: =2*P10*SIN((P14*PI()/180)/2) -> 59.99999734
A13: 0 | B13: 0 | C13: =Start!$C$3 -> 0 | D13: 0 | G13: h = | H13: F = | J13: r = | K13: F = | M13: a= | N13: F = | P13: a= | Q13: F =
A14: 0 | B14: 0 | C14: =Start!$C$3 -> 0 | D14: 0 | G14: =G10*(1-(COS((H10/2)*PI()/180))) -> 8.038475773 | H14: =(G12*G10)/2 -> 1884.955592 | J14: =J10/(0.017453291*K10) -> 60.00000229 | K14: =(J10*J14)/2 -> 1884.955572 | M14: =(ASIN(N10/(2*M12))*180/PI())*2 -> 60.00000162 | N14: =N12*M12/2 -> 1884.955551 | P14: =(Q10*180)/(PI()*P10) -> 59.99999707 | Q14: =(Q10*P10)/2 -> 1884.9555
A15: 0 | B15: 0 | C15: =Start!$C$3 -> 0 | D15: 0 | G15: Eingabe (r + s) | P15: Eingabe (Winkel+s)
A16: 0 | B16: 0 | C16: =Start!$C$3 -> 0 | D16: 0 | G16: r | H16: s | P16: a | Q16: s
A17: 0 | B17: 0 | C17: =Start!$C$3 -> 0 | D17: 0 | G17: 60 | H17: 60 | P17: 60 | Q17: 60
A18: 0 | B18: 0 | C18: =Start!$C$3 -> 0 | D18: 0 | G18: b = | H18: a= | P18: r = | Q18: b =
A19: 0 | B19: 0 | C19: =Start!$C$3 -> 0 | D19: 0 | G19: =PI()*G17*H19/180 -> 62.83185307 | H19: =(ASIN(H17/(2*G17))*180/PI())*2 -> 60 | P19: =Q17/(2*(SIN((P17/2)*PI()/180))) -> 60 | Q19: =PI()*P19*P17/180 -> 62.83185307
A20: 0 | B20: 0 | C20: =Start!$C$3 -> 0 | D20: 0 | G20: h = | H20: F = | P20: h = | Q20: F =
A21: 0 | B21: 0 | C21: =Start!$C$3 -> 0 | D21: 0 | G21: =G17*(1-(COS((H19/2)*PI()/180))) -> 8.038475773 | H21: =(G19*G17)/2 -> 1884.955592 | P21: =P19*(1-(COS((P17/2)*PI()/180))) -> 8.038475773 | Q21: =Q19*P19/2 -> 1884.955592
A22: 0 | B22: 0 | C22: =Start!$C$3 -> 0 | D22: 0 | G22: Eingabe (r+h)
A23: 0 | B23: 0 | C23: =Start!$C$3 -> 0 | D23: 0 | G23: r | H23: h
A24: 0 | B24: 0 | C24: =Start!$C$3 -> 0 | D24: 0 | G24: 50 | H24: 10
A25: 0 | B25: 0 | C25: =Start!$C$3 -> 0 | D25: 0 | G25: a= | H25: s =
A26: 0 | B26: 0 | C26: =Start!$C$3 -> 0 | D26: 0 | G26: =(ASIN(H26/(2*G24))*180/PI())*2 -> 73.73979529 | H26: =SQRT((G24-(H24/2))*8*H24) -> 60
A27: 0 | B27: 0 | C27: =Start!$C$3 -> 0 | D27: 0 | G27: b = | H27: F =
A28: 0 | B28: 0 | C28: =Start!$C$3 -> 0 | D28: 0 | G28: =PI()*G24*G26/180 -> 64.35011088 | H28: =(G24*G28)/2 -> 1608.752772
A29: 0 | B29: 0 | C29: =Start!$C$3 -> 0 | D29: 0 | G29: F1 = | H29: F2 =
A30: 0 | B30: 0 | C30: =Start!$C$3 -> 0 | D30: 0 | G30: =(G24-H24)*(H26/2) -> 1200 | H30: =H28-G30 -> 408.752772
A31: 0 | B31: 0 | C31: =Start!$C$3 -> 0 | D31: 0
A32: 0 | B32: 0 | C32: =Start!$C$3 -> 0 | D32: 0
A33: 0 | B33: 0 | C33: =Start!$C$3 -> 0 | D33: 0
A34: 0 | B34: 0 | C34: =Start!$C$3 -> 0 | D34: 0
A35: 0 | B35: 0 | C35: =Start!$C$3 -> 0 | D35: 0
A36: 0 | B36: 0 | C36: =Start!$C$3 -> 0 | D36: 0

Sheet Zylinderabschnitt(+)
B1: Gesamtmasse = | C1: =IF(Start!AB2="nein","Demo ENDE",SUM(L6:L15)) -> 0 | I1: Massetabelle Zylinderabschnitt (+)
A2: r = Radius | C2: a = Winkel | E2: F = Flächeninhalt gesamt | I2: V = Volumen Zylinderabschnitt in dm³
A3: h = Abschnitthöhe | C3: s = Seitenfläche | E3: F1 = Flächeninhalt Dreieck | I3: m = Masse in kg
A4: L= Abschnittlänge | C4: b = Bogenmaß | E4: F2 = Flächeninhalt Zylinderabschnitt (für Gewichtberechnung)
A5: r | B5: h | C5: L | D5: Dichte | E5: a | F5: s | G5: b | H5: F | I5: F1 | J5: F2 | K5: V | L5: m in kg
A6: 1 | B6: 0 | C6: 0 | D6: =Start!$C$3 -> 0 | E6: =(ASIN(F6/(2*A6))*180/PI())*2 -> 0 | F6: =SQRT((A6-(B6/2))*8*B6) -> 0 | G6: =PI()*A6*E6/180 -> 0 | H6: =(A6*G6)/2 -> 0 | I6: =(A6-B6)*(F6/2) -> 0 | J6: =H6-I6 -> 0 | K6: =J6*C6/1000000 -> 0 | L6: =K6*D6 -> 0 | O6: Kreisabschnitt
A7: 1 | B7: 0 | C7: 0 | D7: =Start!$C$3 -> 0 | E7: =(ASIN(F7/(2*A7))*180/PI())*2 -> 0 | F7: =SQRT((A7-(B7/2))*8*B7) -> 0 | G7: =PI()*A7*E7/180 -> 0 | H7: =(A7*G7)/2 -> 0 | I7: =(A7-B7)*(F7/2) -> 0 | J7: =H7-I7 -> 0 | K7: =J7*C7/1000000 -> 0 | L7: =K7*D7 -> 0 | O7: Eingabe (r + Winkel) | R7: Eingabe (b+Winkel) | U7: Eingabe (h + s) | X7: Eingabe (r + b)
A8: 1 | B8: 0 | C8: 0 | D8: =Start!$C$3 -> 0 | E8: 0 | F8: 0 | G8: 0 | H8: 0 | I8: 0 | J8: 0 | K8: 0 | L8: 0 | O8: r | P8: a | R8: b | S8: a | U8: h | V8: s | X8: r | Y8: b
A9: 1 | B9: 0 | C9: 0 | D9: =Start!$C$3 -> 0 | E9: 0 | F9: 0 | G9: 0 | H9: 0 | I9: 0 | J9: 0 | K9: 0 | L9: 0 | O9: 60 | P9: 60 | R9: 62.83185 | S9: 60 | U9: 8.038476 | V9: 60 | X9: 60 | Y9: 62.83185
A10: 1 | B10: 0 | C10: 0 | D10: =Start!$C$3 -> 0 | E10: 0 | F10: 0 | G10: 0 | H10: 0 | I10: 0 | J10: 0 | K10: 0 | L10: 0 | O10: b = | P10: s = | R10: h = | S10: s = | U10: r = | V10: b = | X10: h = | Y10: s =
A11: 1 | B11: 0 | C11: 0 | D11: =Start!$C$3 -> 0 | E11: 0 | F11: 0 | G11: 0 | H11: 0 | I11: 0 | J11: 0 | K11: 0 | L11: 0 | O11: =PI()*O9*P9/180 -> 62.83185307 | P11: =2*O9*SIN((P9*PI()/180)/2) -> 60 | R11: =R13*(1-(COS((S9/2)*PI()/180))) -> 8.03847608 | S11: =2*R13*SIN((S9*PI()/180)/2) -> 60.00000229 | U11: =(U9/2)+((V9*V9)/(8*U9)) -> 59.99999853 | V11: =PI()*U11*U13/180 -> 62.83185323 | X11: =X9*(1-(COS((X13/2)*PI()/180))) -> 8.038475005 | Y11: =2*X9*SIN((X13*PI()/180)/2) -> 59.99999734
A12: 1 | B12: 0 | C12: 0 | D12: =Start!$C$3 -> 0 | E12: 0 | F12: 0 | G12: 0 | H12: 0 | I12: 0 | J12: 0 | K12: 0 | L12: 0 | O12: h = | P12: F = | R12: r = | S12: F = | U12: a= | V12: F = | X12: a= | Y12: F =
A13: 1 | B13: 0 | C13: 0 | D13: =Start!$C$3 -> 0 | E13: 0 | F13: 0 | G13: 0 | H13: 0 | I13: 0 | J13: 0 | K13: 0 | L13: 0 | O13: =O9*(1-(COS((P9/2)*PI()/180))) -> 8.038475773 | P13: =(O11*O9)/2 -> 1884.955592 | R13: =R9/(0.017453291*S9) -> 60.00000229 | S13: =(R9*R13)/2 -> 1884.955572 | U13: =(ASIN(V9/(2*U11))*180/PI())*2 -> 60.00000162 | V13: =V11*U11/2 -> 1884.955551 | X13: =(Y9*180)/(PI()*X9) -> 59.99999707 | Y13: =(Y9*X9)/2 -> 1884.9555
A14: 1 | B14: 0 | C14: 0 | D14: =Start!$C$3 -> 0 | E14: 0 | F14: 0 | G14: 0 | H14: 0 | I14: 0 | J14: 0 | K14: 0 | L14: 0 | O14: Eingabe (r + s) | X14: Eingabe (Winkel+s)
A15: 1 | B15: 0 | C15: 0 | D15: =Start!$C$3 -> 0 | E15: 0 | F15: 0 | G15: 0 | H15: 0 | I15: 0 | J15: 0 | K15: 0 | L15: 0 | O15: r | P15: s | X15: a | Y15: s
O16: 60 | P16: 60 | X16: 60 | Y16: 60
O17: b = | P17: a= | X17: r = | Y17: b =
O18: =PI()*O16*P18/180 -> 62.83185307 | P18: =(ASIN(P16/(2*O16))*180/PI())*2 -> 60 | X18: =Y16/(2*(SIN((X16/2)*PI()/180))) -> 60 | Y18: =PI()*X18*X16/180 -> 62.83185307
O19: h = | P19: F = | X19: h = | Y19: F =
O20: =O16*(1-(COS((P18/2)*PI()/180))) -> 8.038475773 | P20: =(O18*O16)/2 -> 1884.955592 | X20: =X18*(1-(COS((X16/2)*PI()/180))) -> 8.038475773 | Y20: =Y18*X18/2 -> 1884.955592
O21: Eingabe (r+h)
O22: r | P22: h
O23: 50 | P23: 10
O24: a= | P24: s =
O25: =(ASIN(P25/(2*O23))*180/PI())*2 -> 73.73979529 | P25: =SQRT((O23-(P23/2))*8*P23) -> 60
O26: b = | P26: F =
O27: =PI()*O23*O25/180 -> 64.35011088 | P27: =(O23*O27)/2 -> 1608.752772
O28: F1 = | P28: F2 =
O29: =(O23-P23)*(P25/2) -> 1200 | P29: =P27-O29 -> 408.752772

Sheet Zylinderabschnitt(-)
B1: Gesamtmasse = | C1: =IF(Start!AB2="nein","Demo ENDE",SUM(L6:L15)) -> 0 | I1: Gewichttabelle Zylinderabschnitt (-)
A2: r = Radius | C2: a = Winkel | E2: F = Flächeninhalt gesamt | I2: V = Volumen Zylinderabschnitt in dm³
A3: h = Abschnitthöhe | C3: s = Seitenfläche | E3: F1 = Flächeninhalt Dreieck | I3: m = Masse in kg
A4: L= Abschnittlänge | C4: b = Bogenmaß | E4: F2 = Flächeninhalt Zylinderabschnitt (für Gewichtberechnung)
A5: r | B5: h | C5: L | D5: Dichte | E5: a | F5: s | G5: b | H5: F | I5: F1 | J5: F2 | K5: V | L5: m in kg
A6: 1 | B6: 0 | C6: 0 | D6: =Start!$C$3 -> 0 | E6: =(ASIN(F6/(2*A6))*180/PI())*2 -> 0 | F6: =SQRT((A6-(B6/2))*8*B6) -> 0 | G6: =PI()*A6*E6/180 -> 0 | H6: =(A6*G6)/2 -> 0 | I6: =(A6-B6)*(F6/2) -> 0 | J6: =H6-I6 -> 0 | K6: =J6*C6/1000000 -> 0 | L6: =(K6*D6)-(2*(K6*D6)) -> 0 | O6: Kreisabschnitt
A7: 1 | B7: 0 | C7: 0 | D7: =Start!$C$3 -> 0 | E7: =(ASIN(F7/(2*A7))*180/PI())*2 -> 0 | F7: =SQRT((A7-(B7/2))*8*B7) -> 0 | G7: =PI()*A7*E7/180 -> 0 | H7: =(A7*G7)/2 -> 0 | I7: =(A7-B7)*(F7/2) -> 0 | J7: =H7-I7 -> 0 | K7: =J7*C7/1000000 -> 0 | L7: =(K7*D7)-(2*(K7*D7)) -> 0 | O7: Eingabe (r + Winkel) | R7: Eingabe (b+Winkel) | U7: Eingabe (h + s) | X7: Eingabe (r + b)
A8: 1 | B8: 0 | C8: 0 | D8: =Start!$C$3 -> 0 | E8: 0 | F8: 0 | G8: 0 | H8: 0 | I8: 0 | J8: 0 | K8: 0 | L8: 0 | O8: r | P8: a | R8: b | S8: a | U8: h | V8: s | X8: r | Y8: b
A9: 1 | B9: 0 | C9: 0 | D9: =Start!$C$3 -> 0 | E9: 0 | F9: 0 | G9: 0 | H9: 0 | I9: 0 | J9: 0 | K9: 0 | L9: 0 | O9: 60 | P9: 60 | R9: 62.83185 | S9: 60 | U9: 8.038476 | V9: 60 | X9: 60 | Y9: 62.83185
A10: 1 | B10: 0 | C10: 0 | D10: =Start!$C$3 -> 0 | E10: 0 | F10: 0 | G10: 0 | H10: 0 | I10: 0 | J10: 0 | K10: 0 | L10: 0 | O10: b = | P10: s = | R10: h = | S10: s = | U10: r = | V10: b = | X10: h = | Y10: s =
A11: 1 | B11: 0 | C11: 0 | D11: =Start!$C$3 -> 0 | E11: 0 | F11: 0 | G11: 0 | H11: 0 | I11: 0 | J11: 0 | K11: 0 | L11: 0 | O11: =PI()*O9*P9/180 -> 62.83185307 | P11: =2*O9*SIN((P9*PI()/180)/2) -> 60 | R11: =R13*(1-(COS((S9/2)*PI()/180))) -> 8.03847608 | S11: =2*R13*SIN((S9*PI()/180)/2) -> 60.00000229 | U11: =(U9/2)+((V9*V9)/(8*U9)) -> 59.99999853 | V11: =PI()*U11*U13/180 -> 62.83185323 | X11: =X9*(1-(COS((X13/2)*PI()/180))) -> 8.038475005 | Y11: =2*X9*SIN((X13*PI()/180)/2) -> 59.99999734
A12: 1 | B12: 0 | C12: 0 | D12: =Start!$C$3 -> 0 | E12: 0 | F12: 0 | G12: 0 | H12: 0 | I12: 0 | J12: 0 | K12: 0 | L12: 0 | O12: h = | P12: F = | R12: r = | S12: F = | U12: a= | V12: F = | X12: a= | Y12: F =
A13: 1 | B13: 0 | C13: 0 | D13: =Start!$C$3 -> 0 | E13: 0 | F13: 0 | G13: 0 | H13: 0 | I13: 0 | J13: 0 | K13: 0 | L13: 0 | O13: =O9*(1-(COS((P9/2)*PI()/180))) -> 8.038475773 | P13: =(O11*O9)/2 -> 1884.955592 | R13: =R9/(0.017453291*S9) -> 60.00000229 | S13: =(R9*R13)/2 -> 1884.955572 | U13: =(ASIN(V9/(2*U11))*180/PI())*2 -> 60.00000162 | V13: =V11*U11/2 -> 1884.955551 | X13: =(Y9*180)/(PI()*X9) -> 59.99999707 | Y13: =(Y9*X9)/2 -> 1884.9555
A14: 1 | B14: 0 | C14: 0 | D14: =Start!$C$3 -> 0 | E14: 0 | F14: 0 | G14: 0 | H14: 0 | I14: 0 | J14: 0 | K14: 0 | L14: 0 | O14: Eingabe (r + s) | X14: Eingabe (Winkel+s)
A15: 1 | B15: 0 | C15: 0 | D15: =Start!$C$3 -> 0 | E15: 0 | F15: 0 | G15: 0 | H15: 0 | I15: 0 | J15: 0 | K15: 0 | L15: 0 | O15: r | P15: s | X15: a | Y15: s
O16: 60 | P16: 60 | X16: 60 | Y16: 60
O17: b = | P17: a= | X17: r = | Y17: b =
O18: =PI()*O16*P18/180 -> 62.83185307 | P18: =(ASIN(P16/(2*O16))*180/PI())*2 -> 60 | X18: =Y16/(2*(SIN((X16/2)*PI()/180))) -> 60 | Y18: =PI()*X18*X16/180 -> 62.83185307
O19: h = | P19: F = | X19: h = | Y19: F =
O20: =O16*(1-(COS((P18/2)*PI()/180))) -> 8.038475773 | P20: =(O18*O16)/2 -> 1884.955592 | X20: =X18*(1-(COS((X16/2)*PI()/180))) -> 8.038475773 | Y20: =Y18*X18/2 -> 1884.955592
O21: Eingabe (r+h)
O22: r | P22: h
O23: 50 | P23: 10
O24: a= | P24: s =
O25: =(ASIN(P25/(2*O23))*180/PI())*2 -> 73.73979529 | P25: =SQRT((O23-(P23/2))*8*P23) -> 60
O26: b = | P26: F =
O27: =PI()*O23*O25/180 -> 64.35011088 | P27: =(O23*O27)/2 -> 1608.752772
O28: F1 = | P28: F2 =
O29: =(O23-P23)*(P25/2) -> 1200 | P29: =P27-O29 -> 408.752772

Sheet Prisma(+)
A1: Gesamtmasse: | D1: =IF(Start!AB2="nein","Demo ENDE",SUM(F5:F36)) -> 0
A2: Massetabelle Prisma (+):
A3: Seitenlängen (L1), (L2), (L3) und Höhe (h) in mm eingeben!
A4: L1 | B4: L2 | C4: L3 | D4: h | E4: Dichte | F4: Masse in kg
A5: 0 | B5: 0 | C5: 0 | D5: 0 | E5: =Start!$C$3 -> 0 | F5: =(0.25*(SQRT(((A5+B5+C5)*((A5+B5+C5)-2*A5)*((A5+B5+C5)-2*B5)*((A5+B5+C5)-2*C5))))*D5*E5)/1000000 -> 0
A6: 0 | B6: 0 | C6: 0 | D6: 0 | E6: =Start!$C$3 -> 0 | F6: =(0.25*(SQRT(((A6+B6+C6)*((A6+B6+C6)-2*A6)*((A6+B6+C6)-2*B6)*((A6+B6+C6)-2*C6))))*D6*E6)/1000000 -> 0
A7: 0 | B7: 0 | C7: 0 | D7: 0 | E7: =Start!$C$3 -> 0 | F7: 0
A8: 0 | B8: 0 | C8: 0 | D8: 0 | E8: =Start!$C$3 -> 0 | F8: 0
A9: 0 | B9: 0 | C9: 0 | D9: 0 | E9: =Start!$C$3 -> 0 | F9: 0
A10: 0 | B10: 0 | C10: 0 | D10: 0 | E10: =Start!$C$3 -> 0 | F10: 0
A11: 0 | B11: 0 | C11: 0 | D11: 0 | E11: =Start!$C$3 -> 0 | F11: 0
A12: 0 | B12: 0 | C12: 0 | D12: 0 | E12: =Start!$C$3 -> 0 | F12: 0
A13: 0 | B13: 0 | C13: 0 | D13: 0 | E13: =Start!$C$3 -> 0 | F13: 0
A14: 0 | B14: 0 | C14: 0 | D14: 0 | E14: =Start!$C$3 -> 0 | F14: 0
A15: 0 | B15: 0 | C15: 0 | D15: 0 | E15: =Start!$C$3 -> 0 | F15: 0
A16: 0 | B16: 0 | C16: 0 | D16: 0 | E16: =Start!$C$3 -> 0 | F16: 0
A17: 0 | B17: 0 | C17: 0 | D17: 0 | E17: =Start!$C$3 -> 0 | F17: 0
A18: 0 | B18: 0 | C18: 0 | D18: 0 | E18: =Start!$C$3 -> 0 | F18: 0
A19: 0 | B19: 0 | C19: 0 | D19: 0 | E19: =Start!$C$3 -> 0 | F19: 0
A20: 0 | B20: 0 | C20: 0 | D20: 0 | E20: =Start!$C$3 -> 0 | F20: 0
A21: 0 | B21: 0 | C21: 0 | D21: 0 | E21: =Start!$C$3 -> 0 | F21: 0
A22: 0 | B22: 0 | C22: 0 | D22: 0 | E22: =Start!$C$3 -> 0 | F22: 0
A23: 0 | B23: 0 | C23: 0 | D23: 0 | E23: =Start!$C$3 -> 0 | F23: 0
A24: 0 | B24: 0 | C24: 0 | D24: 0 | E24: =Start!$C$3 -> 0 | F24: 0
A25: 0 | B25: 0 | C25: 0 | D25: 0 | E25: =Start!$C$3 -> 0 | F25: 0
A26: 0 | B26: 0 | C26: 0 | D26: 0 | E26: =Start!$C$3 -> 0 | F26: 0
A27: 0 | B27: 0 | C27: 0 | D27: 0 | E27: =Start!$C$3 -> 0 | F27: 0
A28: 0 | B28: 0 | C28: 0 | D28: 0 | E28: =Start!$C$3 -> 0 | F28: 0
A29: 0 | B29: 0 | C29: 0 | D29: 0 | E29: =Start!$C$3 -> 0 | F29: 0
A30: 0 | B30: 0 | C30: 0 | D30: 0 | E30: =Start!$C$3 -> 0 | F30: 0
A31: 0 | B31: 0 | C31: 0 | D31: 0 | E31: =Start!$C$3 -> 0 | F31: 0
A32: 0 | B32: 0 | C32: 0 | D32: 0 | E32: =Start!$C$3 -> 0 | F32: 0
A33: 0 | B33: 0 | C33: 0 | D33: 0 | E33: =Start!$C$3 -> 0 | F33: 0
A34: 0 | B34: 0 | C34: 0 | D34: 0 | E34: =Start!$C$3 -> 0 | F34: 0
A35: 0 | B35: 0 | C35: 0 | D35: 0 | E35: =Start!$C$3 -> 0 | F35: 0
A36: 0 | B36: 0 | C36: 0 | D36: 0 | E36: =Start!$C$3 -> 0 | F36: 0

Sheet Prisma(-)
A1: Gesamtmasse: | D1: =IF(Start!AB2="nein","Demo ENDE",SUM(F5:F36)) -> 0
A2: Massetabelle Prisma (-):
A3: Seitenlängen (L1), (L2), (L3) und Höhe (h) in mm eingeben!
A4: L1 | B4: L2 | C4: L3 | D4: h | E4: Dichte | F4: Masse in kg
A5: 0 | B5: 0 | C5: 0 | D5: 0 | E5: =Start!$C$3 -> 0 | F5: =((0.25*(SQRT(((A5+B5+C5)*((A5+B5+C5)-2*A5)*((A5+B5+C5)-2*B5)*((A5+B5+C5)-2*C5))))*D5*E5)/1000000)-(2*((0.25*(SQRT(((A5+B5+C5)*((A5+B5+C5)-2*A5)*((A5+B5+C5)-2*B5)*((A5+B5+C5)-2*C5))))*D5*E5)/1000000)) -> 0
A6: 0 | B6: 0 | C6: 0 | D6: 0 | E6: =Start!$C$3 -> 0 | F6: =((0.25*(SQRT(((A6+B6+C6)*((A6+B6+C6)-2*A6)*((A6+B6+C6)-2*B6)*((A6+B6+C6)-2*C6))))*D6*E6)/1000000)-(2*((0.25*(SQRT(((A6+B6+C6)*((A6+B6+C6)-2*A6)*((A6+B6+C6)-2*B6)*((A6+B6+C6)-2*C6))))*D6*E6)/1000000)) -> 0
A7: 0 | B7: 0 | C7: 0 | D7: 0 | E7: =Start!$C$3 -> 0 | F7: 0
A8: 0 | B8: 0 | C8: 0 | D8: 0 | E8: =Start!$C$3 -> 0 | F8: 0
A9: 0 | B9: 0 | C9: 0 | D9: 0 | E9: =Start!$C$3 -> 0 | F9: 0
A10: 0 | B10: 0 | C10: 0 | D10: 0 | E10: =Start!$C$3 -> 0 | F10: 0
A11: 0 | B11: 0 | C11: 0 | D11: 0 | E11: =Start!$C$3 -> 0 | F11: 0
A12: 0 | B12: 0 | C12: 0 | D12: 0 | E12: =Start!$C$3 -> 0 | F12: 0
A13: 0 | B13: 0 | C13: 0 | D13: 0 | E13: =Start!$C$3 -> 0 | F13: 0
A14: 0 | B14: 0 | C14: 0 | D14: 0 | E14: =Start!$C$3 -> 0 | F14: 0
A15: 0 | B15: 0 | C15: 0 | D15: 0 | E15: =Start!$C$3 -> 0 | F15: 0
A16: 0 | B16: 0 | C16: 0 | D16: 0 | E16: =Start!$C$3 -> 0 | F16: 0
A17: 0 | B17: 0 | C17: 0 | D17: 0 | E17: =Start!$C$3 -> 0 | F17: 0
A18: 0 | B18: 0 | C18: 0 | D18: 0 | E18: =Start!$C$3 -> 0 | F18: 0
A19: 0 | B19: 0 | C19: 0 | D19: 0 | E19: =Start!$C$3 -> 0 | F19: 0
A20: 0 | B20: 0 | C20: 0 | D20: 0 | E20: =Start!$C$3 -> 0 | F20: 0
A21: 0 | B21: 0 | C21: 0 | D21: 0 | E21: =Start!$C$3 -> 0 | F21: 0
A22: 0 | B22: 0 | C22: 0 | D22: 0 | E22: =Start!$C$3 -> 0 | F22: 0
A23: 0 | B23: 0 | C23: 0 | D23: 0 | E23: =Start!$C$3 -> 0 | F23: 0
A24: 0 | B24: 0 | C24: 0 | D24: 0 | E24: =Start!$C$3 -> 0 | F24: 0
A25: 0 | B25: 0 | C25: 0 | D25: 0 | E25: =Start!$C$3 -> 0 | F25: 0
A26: 0 | B26: 0 | C26: 0 | D26: 0 | E26: =Start!$C$3 -> 0 | F26: 0
A27: 0 | B27: 0 | C27: 0 | D27: 0 | E27: =Start!$C$3 -> 0 | F27: 0
A28: 0 | B28: 0 | C28: 0 | D28: 0 | E28: =Start!$C$3 -> 0 | F28: 0
A29: 0 | B29: 0 | C29: 0 | D29: 0 | E29: =Start!$C$3 -> 0 | F29: 0
A30: 0 | B30: 0 | C30: 0 | D30: 0 | E30: =Start!$C$3 -> 0 | F30: 0
A31: 0 | B31: 0 | C31: 0 | D31: 0 | E31: =Start!$C$3 -> 0 | F31: 0
A32: 0 | B32: 0 | C32: 0 | D32: 0 | E32: =Start!$C$3 -> 0 | F32: 0
A33: 0 | B33: 0 | C33: 0 | D33: 0 | E33: =Start!$C$3 -> 0 | F33: 0
A34: 0 | B34: 0 | C34: 0 | D34: 0 | E34: =Start!$C$3 -> 0 | F34: 0
A35: 0 | B35: 0 | C35: 0 | D35: 0 | E35: =Start!$C$3 -> 0 | F35: 0
A36: 0 | B36: 0 | C36: 0 | D36: 0 | E36: =Start!$C$3 -> 0 | F36: 0

Sheet Dichten
B2: weitere Dichten
B3: Material | C3: Dichte in Gramm/cm³ (Maximalwerte) | D3: Stoffart
B4: Alkohol (Äthanol) bei 18°C | C4: 0.791 | D4: Flüssigkeit
B5: Aluminium, gegossen | C5: 2.56 | D5: Metall
B6: Aluminium, gehämmert | C6: 2.75 | D6: Metall
B7: Aluminium, rein | C7: 2.72 | D7: Metall
B8: Aluminiumbronze (7,7-8,4) | C8: 8.4 | D8: Metall
B9: Asbest (2,1-2,8) | C9: 2.8 | D9: Feststoff
B10: Asbestpappe | C10: 1.2 | D10: Feststoff
B11: Asphalt (1,1-1,5) | C11: 1.5 | D11: Feststoff
B12: Äther bei 18°C | C12: 0.717 | D12: Flüssigkeit
B13: Azeton | C13: 0.8 | D13: Flüssigkeit
B14: Benzin, leicht, bei 15°C (0,68-0,74) | C14: 0.74 | D14: Flüssigkeit
B15: Benzol bei 18°C | C15: 0.881 | D15: Flüssigkeit
B16: Beton (1,8-2,4) | C16: 2.4 | D16: Metall
B17: Blei | C17: 11.34 | D17: Metall
B18: Bleibronze (8,85-9,1) | C18: 9.1 | D18: Metall
B19: Braunkohle (1,2-1,5) | C19: 1.5 | D19: Feststoff
B20: Bronze (Sn-) | C20: 8.6 | D20: Metall
B21: Chrom | C21: 7.1 | D21: Metall
B22: Chromnickel | C22: 7.9 | D22: Metall
B23: Chromstahl | C23: 7.7 | D23: Metall
B24: Deltametall | C24: 8.6 | D24: Metall
B25: Dieselkraftstoff (1,0-1,08) | C25: 1.08 | D25: Flüssigkeit
B26: Eis von 0° (0,88-0,92) | C26: 0.92 | D26: Feststoff
B27: Eisen rein | C27: 7.86 | D27: Metall
B28: Eisenoxid | C28: 5.24 | D28: Feststoff
B29: Elektron | C29: 1.8 | D29: Feststoff
B30: Fette (0,92-0,96) | C30: 0.96 | D30: Feststoff
B31: Filz (0,38-0,42) | C31: 0.42 | D31: Feststoff
B32: Flussstahl | C32: 7.86 | D32: Metall
B33: Glas, Fenster (2,4-2,67) | C33: 2.67 | D33: Feststoff
B34: Graphit (1,9-2,3) | C34: 2.3 | D34: Feststoff
B35: Grauguss | C35: 7.2 | D35: Metall
B36: Gussstahl | C36: 7.85 | D36: Metall
B37: Hartgummi (1,2-1,8) | C37: 1.8 | D37: Feststoff
B38: Harz | C38: 1.07 | D38: Feststoff
B39: Heizöl aus Erdöl (0,89-0,98) | C39: 0.98 | D39: Flüssigkeit
B40: Heizöl aus Steinkohle (1,02-1,08) | C40: 1.08 | D40: Flüssigkeit
B41: Holz Birke, lufttrocken (0,52-0,77) | C41: 0.77 | D41: Feststoff
B42: Holz Eiche, lufttrocken (0,69-1,03) | C42: 1.03 | D42: Feststoff
B43: Holz Esche, lufttrocken 0,57-0,94) | C43: 0.94 | D43: Feststoff
B44: Holz Fichte, lufttrocken (0,33-0,75) | C44: 0.75 | D44: Feststoff
B45: Holz Pockholz, lufttrocken (1,0-1,4) | C45: 1.4 | D45: Feststoff
B46: Holz Teakholz, lufttrocken | C46: 0.9 | D46: Feststoff
B47: Holzhohle (0,3-0,5) | C47: 0.5 | D47: Feststoff
B48: Invarstahl | C48: 8.7 | D48: Metall
B49: Iridium | C49: 22.4 | D49: Metall
B50: Jenaer Glas | C50: 2.6 | D50: Feststoff
B51: Kesselstein | C51: 2.5 | D51: Feststoff
B52: Kobaltstahl 15% | C52: 7.8 | D52: Metall
B53: Kobaltstahl 35% | C53: 8 | D53: Metall
B54: Koks, luftfrei (1,6-1,9) | C54: 1.9 | D54: Feststoff
B55: Kork (0,2-0,35) | C55: 0.35 | D55: Feststoff
B56: Kupfer, gegossen (8,63-8,8) | C56: 8.8 | D56: Metall
B57: Kupfer, gewalzt (8,82-8,95) | C57: 8.95 | D57: Metall
B58: Leder (0,86-1,01) | C58: 1.02 | D58: Feststoff
B59: Leuchtpetroleum (0,76-0,86) | C59: 0.86 | D59: Flüssigkeit
B60: Lötzinn (7,4-10,8) | C60: 10.8 | D60: Metall
B61: Luft, flüssig | C61: 0.86 | D61: Flüssigkeit
B62: Maschinenöl | C62: 0.9 | D62: Flüssigkeit
B63: Messing (8,5-8,8) | C63: 8.8 | D63: Metall
B64: Mineralöle bei 15°C (0,8-1,1) | C64: 1.1 | D64: Flüssigkeit
B65: Molybdänstahl | C65: 8.1 | D65: Metall
B66: Motorenbenzin (0,75-0,78) | C66: 0.78 | D66: Flüssigkeit
B67: Neusilber (8,4-8,7) | C67: 8.7 | D67: Metall
B68: Nickel, gegossen | C68: 8.3 | D68: Metall
B69: Nickel, gehämmert (8,35-8,65) | C69: 8.65 | D69: Metall
B70: Nickel, gezogen (8,35-8,9) | C70: 8.9 | D70: Metall
B71: Novotext | C71: 1.33 | D71: Feststoff
B72: Papier (0,7-1,15) | C72: 1.15 | D72: Feststoff
B73: Paraffin | C73: 0.91 | D73: Feststoff
B74: Pertinax | C74: 1.3 | D74: Feststoff
B75: Phosphor, metallisch | C75: 2.36 | D75: Metall
B76: Phosphorbronze (8,8-8,86) | C76: 8.86 | D76: Metall
B77: Platin | C77: 21.5 | D77: Metall
B78: Plexiglas (1,18-1,2) | C78: 1.2 | D78: Feststoff
B79: Porzellan (2,3-2,5) | C79: 2.5 | D79: Feststoff
B80: Quecksilber bei 20°C | C80: 13.546 | D80: Metall
B81: Rotguss (8,56-8,9) | C81: 8.9 | D81: Metall
B82: Rüböl, raffiniert | C82: 0.91 | D82: Flüssigkeit
B83: Ruß | C83: 1.52 | D83: Feststoff
B84: Salpetersäure, 100%, bei 18°C | C84: 1.561 | D84: Flüssigkeit
B85: Salzsäure, 10%, bei 18°C | C85: 1.048 | D85: Flüssigkeit
B86: Salzsäure, 40%, bei 18°C | C86: 1.199 | D86: Flüssigkeit
B87: Sand, feucht | C87: 2 | D87: Feststoff
B88: Sand, trocken | C88: 1.6 | D88: Feststoff
B89: Sandstein | C89: 2.5 | D89: Feststoff
B90: Schamottestein | C90: 2.7 | D90: Feststoff
B91: Schwefelsäure 100% bei 18°C | C91: 1.833 | D91: Flüssigkeit
B92: Schweres Wasser | C92: 1.11 | D92: Flüssigkeit
B93: Steinkohle (1,2-1,5) | C93: 1.5 | D93: Feststoff
B94: Temperguss | C94: 7.6 | D94: Metall
B95: Terpentinöl bei 18° | C95: 0.87 | D95: Flüssigkeit
B96: Tiegelstahl | C96: 7.85 | D96: Metall
B97: Titan | C97: 4.5 | D97: Metall
B98: Tombak | C98: 8.65 | D98: Feststoff
B99: Transformatorenöl | C99: 0.87 | D99: Flüssigkeit
B100: Wachs | C100: 0.98 | D100: Feststoff
B101: Wasser, destiliert, bei 15°C | C101: 0.99913 | D101: Flüssigkeit
B102: Wasser, destiliert, bei 20°C | C102: 0.99823 | D102: Flüssigkeit
B103: Wasser, destiliert, bei 4°C | C103: 1 | D103: Flüssigkeit
B104: Weichlot | C104: 9.2 | D104: Feststoff
B105: Zement, Portlant, frisch | C105: 3.2 | D105: Feststoff
B106: Ziegelstein | C106: 2 | D106: Feststoff
B107: Zink gegossen | C107: 6.86 | D107: Metall
B108: Zink gehämmert | C108: 7.2 | D108: Metall
B109: Zinkdruckguss | C109: 6.8 | D109: Metall
B110: Zinn, gegossen | C110: 7.28 | D110: Metall
B111: Zinz gewalzt | C111: 7.15 | D111: Metall
B112: Zylinderöle bei 20°C (0,92-0,94)) | C112: 0.94 | D112: Flüssigkeit

Sheet Rechner
D1: =NOW() -> 2021-04-02T12:55:34.350
D2: 0
D6: 0
D7: 0
D8: 0 | E8: 0
